Workbook

Sheet Display
F2: CQG ARK Next Generation Internet ETF | AB2: =RTD("cqg.rtd", ,"SystemInfo", "Linetime") -> 45981.29457
B5: Exchange Traded Funds Performance | S5: Top 15 Positive Performing Companies
B6: Symbol | C6: Description | H6: Last | I6: NC | J6: %NC | K6: NC/ATR | L6: Open | M6: High | N6: Low | O6: Volume | Q6: Ratio
B7: ARKW | C7: =RTD("cqg.rtd", ,"ContractData",B7, "LongDescription",, "T") -> ARK Next Generation Internet ETF | H7: =RTD("cqg.rtd", ,"ContractData",B7, "LastTradeToday",, "T") ->  | I7: =RTD("cqg.rtd", ,"ContractData",B7, "NetLastTradeToday",, "T") ->  | J7: =IFERROR(RTD("cqg.rtd", ,"ContractData",B7, "PerCentNetLastTrade",, "T")/100,"") ->  | K7: =IFERROR(I7/RTD("cqg.rtd",,"StudyData",B7, "ATR", "MaType=Sim,Period=10", "ATR","D","-1","ALL",,,"FALSE","T")/100,"") ->  | L7: =RTD("cqg.rtd", ,"ContractData",B7, "OPen",, "T") ->  | M7: =RTD("cqg.rtd", ,"ContractData", B7, "HIgh",, "T") ->  | N7: =RTD("cqg.rtd", ,"ContractData",B7, "LOw",, "T") ->  | O7: =RTD("cqg.rtd", ,"ContractData",B7, "T_CVol",, "T") -> 658 | Q7: =IFERROR(O7/RTD("cqg.rtd",,"StudyData",B7, "MA", "InputChoice=Vol,MAType=Sim,Period=21", "MA","D","-1","all",,,,"T"),"") -> 0.003319888482
B8: SPY | C8: =RTD("cqg.rtd", ,"ContractData",B8, "LongDescription",, "T") -> SPDR S&P 500 | H8: =RTD("cqg.rtd", ,"ContractData",B8, "LastTradeToday",, "T") ->  | I8: =RTD("cqg.rtd", ,"ContractData",B8, "NetLastTradeToday",, "T") ->  | J8: =IFERROR(RTD("cqg.rtd", ,"ContractData",B8, "PerCentNetLastTrade",, "T")/100,"") ->  | K8: =IFERROR(I8/RTD("cqg.rtd",,"StudyData",B8, "ATR", "MaType=Sim,Period=10", "ATR","D","-1","ALL",,,"FALSE","T")/100,"") ->  | L8: =RTD("cqg.rtd", ,"ContractData",B8, "OPen",, "T") ->  | M8: =RTD("cqg.rtd", ,"ContractData", B8, "HIgh",, "T") ->  | N8: =RTD("cqg.rtd", ,"ContractData",B8, "LOw",, "T") ->  | O8: =RTD("cqg.rtd", ,"ContractData",B8, "T_CVol",, "T") -> 818063 | Q8: =IFERROR(O8/RTD("cqg.rtd",,"StudyData",B8, "MA", "InputChoice=Vol,MAType=Sim,Period=21", "MA","D","-1","all",,,,"T"),"") -> 0.01018273023
B9: XLF | C9: =RTD("cqg.rtd", ,"ContractData",B9, "LongDescription",, "T") -> Financial Select Sector SPDR | H9: =RTD("cqg.rtd", ,"ContractData",B9, "LastTradeToday",, "T") ->  | I9: =RTD("cqg.rtd", ,"ContractData",B9, "NetLastTradeToday",, "T") ->  | J9: =IFERROR(RTD("cqg.rtd", ,"ContractData",B9, "PerCentNetLastTrade",, "T")/100,"") ->  | K9: =IFERROR(I9/RTD("cqg.rtd",,"StudyData",B9, "ATR", "MaType=Sim,Period=10", "ATR","D","-1","ALL",,,"FALSE","T")/100,"") ->  | L9: =RTD("cqg.rtd", ,"ContractData",B9, "OPen",, "T") ->  | M9: =RTD("cqg.rtd", ,"ContractData", B9, "HIgh",, "T") ->  | N9: =RTD("cqg.rtd", ,"ContractData",B9, "LOw",, "T") ->  | O9: =RTD("cqg.rtd", ,"ContractData",B9, "T_CVol",, "T") -> 65864 | Q9: =IFERROR(O9/RTD("cqg.rtd",,"StudyData",B9, "MA", "InputChoice=Vol,MAType=Sim,Period=21", "MA","D","-1","all",,,,"T"),"") -> 0.00148117382
B10: S.XLY | C10: =RTD("cqg.rtd", ,"ContractData",B10, "LongDescription",, "T") -> Consumer Discretionary Select SectorSPDR | H10: =RTD("cqg.rtd", ,"ContractData",B10, "LastTradeToday",, "T") ->  | I10: =RTD("cqg.rtd", ,"ContractData",B10, "NetLastTradeToday",, "T") ->  | J10: =IFERROR(RTD("cqg.rtd", ,"ContractData",B10, "PerCentNetLastTrade",, "T")/100,"") ->  | K10: =IFERROR(I10/RTD("cqg.rtd",,"StudyData",B10, "ATR", "MaType=Sim,Period=10", "ATR","D","-1","ALL",,,"FALSE","T")/100,"") ->  | L10: =RTD("cqg.rtd", ,"ContractData",B10, "OPen",, "T") ->  | M10: =RTD("cqg.rtd", ,"ContractData", B10, "HIgh",, "T") ->  | N10: =RTD("cqg.rtd", ,"ContractData",B10, "LOw",, "T") ->  | O10: =RTD("cqg.rtd", ,"ContractData",B10, "T_CVol",, "T") -> 1693 | Q10: =IFERROR(O10/RTD("cqg.rtd",,"StudyData",B10, "MA", "InputChoice=Vol,MAType=Sim,Period=21", "MA","D","-1","all",,,,"T"),"") -> 0.0002664139941
B11: S.FXI | C11: =RTD("cqg.rtd", ,"ContractData",B11, "LongDescription",, "T") -> iShares China Large-Cap ETF | H11: =RTD("cqg.rtd", ,"ContractData",B11, "LastTradeToday",, "T") ->  | I11: =RTD("cqg.rtd", ,"ContractData",B11, "NetLastTradeToday",, "T") ->  | J11: =IFERROR(RTD("cqg.rtd", ,"ContractData",B11, "PerCentNetLastTrade",, "T")/100,"") ->  | K11: =IFERROR(I11/RTD("cqg.rtd",,"StudyData",B11, "ATR", "MaType=Sim,Period=10", "ATR","D","-1","ALL",,,"FALSE","T")/100,"") ->  | L11: =RTD("cqg.rtd", ,"ContractData",B11, "OPen",, "T") ->  | M11: =RTD("cqg.rtd", ,"ContractData", B11, "HIgh",, "T") ->  | N11: =RTD("cqg.rtd", ,"ContractData",B11, "LOw",, "T") ->  | O11: =RTD("cqg.rtd", ,"ContractData",B11, "T_CVol",, "T") -> 146426 | Q11: =IFERROR(O11/RTD("cqg.rtd",,"StudyData",B11, "MA", "InputChoice=Vol,MAType=Sim,Period=21", "MA","D","-1","all",,,,"T"),"") -> 0.005048303451
B12: IWF | C12: =RTD("cqg.rtd", ,"ContractData",B12, "LongDescription",, "T") -> iShares Russell 1000 Growth ETF | H12: =RTD("cqg.rtd", ,"ContractData",B12, "LastTradeToday",, "T") ->  | I12: =RTD("cqg.rtd", ,"ContractData",B12, "NetLastTradeToday",, "T") ->  | J12: =IFERROR(RTD("cqg.rtd", ,"ContractData",B12, "PerCentNetLastTrade",, "T")/100,"") ->  | K12: =IFERROR(I12/RTD("cqg.rtd",,"StudyData",B12, "ATR", "MaType=Sim,Period=10", "ATR","D","-1","ALL",,,"FALSE","T")/100,"") ->  | L12: =RTD("cqg.rtd", ,"ContractData",B12, "OPen",, "T") ->  | M12: =RTD("cqg.rtd", ,"ContractData", B12, "HIgh",, "T") ->  | N12: =RTD("cqg.rtd", ,"ContractData",B12, "LOw",, "T") ->  | O12: =RTD("cqg.rtd", ,"ContractData",B12, "T_CVol",, "T") -> 57 | Q12: =IFERROR(O12/RTD("cqg.rtd",,"StudyData",B12, "MA", "InputChoice=Vol,MAType=Sim,Period=21", "MA","D","-1","all",,,,"T"),"") -> 4.340955706e-05
B13: IWO | C13: =RTD("cqg.rtd", ,"ContractData",B13, "LongDescription",, "T") -> iShares Russell 2000 Growth ETF | H13: =RTD("cqg.rtd", ,"ContractData",B13, "LastTradeToday",, "T") ->  | I13: =RTD("cqg.rtd", ,"ContractData",B13, "NetLastTradeToday",, "T") ->  | J13: =IFERROR(RTD("cqg.rtd", ,"ContractData",B13, "PerCentNetLastTrade",, "T")/100,"") ->  | K13: =IFERROR(I13/RTD("cqg.rtd",,"StudyData",B13, "ATR", "MaType=Sim,Period=10", "ATR","D","-1","ALL",,,"FALSE","T")/100,"") ->  | L13: =RTD("cqg.rtd", ,"ContractData",B13, "OPen",, "T") ->  | M13: =RTD("cqg.rtd", ,"ContractData", B13, "HIgh",, "T") ->  | N13: =RTD("cqg.rtd", ,"ContractData",B13, "LOw",, "T") ->  | O13: =RTD("cqg.rtd", ,"ContractData",B13, "T_CVol",, "T") -> 5 | Q13: =IFERROR(O13/RTD("cqg.rtd",,"StudyData",B13, "MA", "InputChoice=Vol,MAType=Sim,Period=21", "MA","D","-1","all",,,,"T"),"") -> 1.248925478e-05
B14: EP | C14: =RTD("cqg.rtd", ,"ContractData",B14, "LongDescription",, "T") -> E-Mini S&P 500, Dec 25 | H14: =RTD("cqg.rtd", ,"ContractData",B14, "LastTradeToday",, "T") -> 6750.25 | I14: =RTD("cqg.rtd", ,"ContractData",B14, "NetLastTradeToday",, "T") -> 88.75 | J14: =IFERROR(RTD("cqg.rtd", ,"ContractData",B14, "PerCentNetLastTrade",, "T")/100,"") -> 0.01332282519 | K14: =IFERROR(I14/RTD("cqg.rtd",,"StudyData",B14, "ATR", "MaType=Sim,Period=10", "ATR","D","-1","ALL",,,"FALSE","T")/100,"") -> 0.008360810174 | L14: =RTD("cqg.rtd", ,"ContractData",B14, "OPen",, "T") -> 6697.5 | M14: =RTD("cqg.rtd", ,"ContractData", B14, "HIgh",, "T") -> 6757 | N14: =RTD("cqg.rtd", ,"ContractData",B14, "LOw",, "T") -> 6694 | O14: =RTD("cqg.rtd", ,"ContractData",B14, "T_CVol",, "T") -> 194307 | Q14: =IFERROR(O14/RTD("cqg.rtd",,"StudyData",B14, "MA", "InputChoice=Vol,MAType=Sim,Period=21", "MA","D","-1","all",,,,"T"),"") -> 0.1145718052
B15: XLE | C15: =RTD("cqg.rtd", ,"ContractData",B15, "LongDescription",, "T") -> Energy Select Sector SPDR | H15: =RTD("cqg.rtd", ,"ContractData",B15, "LastTradeToday",, "T") ->  | I15: =RTD("cqg.rtd", ,"ContractData",B15, "NetLastTradeToday",, "T") ->  | J15: =IFERROR(RTD("cqg.rtd", ,"ContractData",B15, "PerCentNetLastTrade",, "T")/100,"") ->  | K15: =IFERROR(I15/RTD("cqg.rtd",,"StudyData",B15, "ATR", "MaType=Sim,Period=10", "ATR","D","-1","ALL",,,"FALSE","T")/100,"") ->  | L15: =RTD("cqg.rtd", ,"ContractData",B15, "OPen",, "T") ->  | M15: =RTD("cqg.rtd", ,"ContractData", B15, "HIgh",, "T") ->  | N15: =RTD("cqg.rtd", ,"ContractData",B15, "LOw",, "T") ->  | O15: =RTD("cqg.rtd", ,"ContractData",B15, "T_CVol",, "T") -> 12275 | Q15: =IFERROR(O15/RTD("cqg.rtd",,"StudyData",B15, "MA", "InputChoice=Vol,MAType=Sim,Period=21", "MA","D","-1","all",,,,"T"),"") -> 0.0008046948314
B16: USO | C16: =RTD("cqg.rtd", ,"ContractData",B16, "LongDescription",, "T") -> United States Oil Fund | H16: =RTD("cqg.rtd", ,"ContractData",B16, "LastTradeToday",, "T") ->  | I16: =RTD("cqg.rtd", ,"ContractData",B16, "NetLastTradeToday",, "T") ->  | J16: =IFERROR(RTD("cqg.rtd", ,"ContractData",B16, "PerCentNetLastTrade",, "T")/100,"") ->  | K16: =IFERROR(I16/RTD("cqg.rtd",,"StudyData",B16, "ATR", "MaType=Sim,Period=10", "ATR","D","-1","ALL",,,"FALSE","T")/100,"") ->  | L16: =RTD("cqg.rtd", ,"ContractData",B16, "OPen",, "T") ->  | M16: =RTD("cqg.rtd", ,"ContractData", B16, "HIgh",, "T") ->  | N16: =RTD("cqg.rtd", ,"ContractData",B16, "LOw",, "T") ->  | O16: =RTD("cqg.rtd", ,"ContractData",B16, "T_CVol",, "T") -> 39226 | Q16: =IFERROR(O16/RTD("cqg.rtd",,"StudyData",B16, "MA", "InputChoice=Vol,MAType=Sim,Period=21", "MA","D","-1","all",,,,"T"),"") -> 0.007801916823
C17: Top 15 Description | H17: Last | I17: NC | J17: %NC | K17: NC/ATR | L17: Open | M17: High | N17: Low | O17: Volume | Q17: Ratio
A18: =TRIM(ARKW!O1) ->  | B18: News | C18: =IFERROR(RTD("cqg.rtd", ,"ContractData",A18, "LongDescription",, "T")&" ("&RIGHT(A18,LEN(A18)-5)&")","") ->  | H18: =IF(C18="","",IFERROR(RTD("cqg.rtd", ,"ContractData",A18, "LastTradeToday",, "T"),"")) ->  | I18: =IF(C18="","",IFERROR(RTD("cqg.rtd", ,"ContractData",A18, "NetLastTradeToday",, "T"),"")) ->  | J18: =IFERROR(RTD("cqg.rtd", ,"ContractData",A18, "PerCentNetLastTrade",, "T")/100,"") ->  | K18: =IFERROR(I18/RTD("cqg.rtd",,"StudyData",A18, "ATR", "MaType=Sim,Period=10", "ATR","D","-1","ALL",,,"FALSE","T")/100,"") ->  | L18: =IF(C18="","",IFERROR(RTD("cqg.rtd", ,"ContractData",A18, "OPen",, "T"),"")) ->  | M18: =IF(C18="","",IFERROR(RTD("cqg.rtd", ,"ContractData", A18, "HIgh",, "T"),"")) ->  | N18: =IF(C18="","",IFERROR(RTD("cqg.rtd", ,"ContractData",A18, "LOw",, "T"),"")) ->  | O18: =IF(C18="","",IFERROR(RTD("cqg.rtd", ,"ContractData",A18, "T_CVol",, "T"),"")) ->  | Q18: =IFERROR(O18/RTD("cqg.rtd",,"StudyData",A18, "MA", "InputChoice=Vol,MAType=Sim,Period=21", "MA","D","-1","all",,,,"T"),"") ->  | R18: =ARKW!R1 -> 
A19: =TRIM(ARKW!O2) ->  | B19: News | C19: =IFERROR(RTD("cqg.rtd", ,"ContractData",A19, "LongDescription",, "T")&" ("&RIGHT(A19,LEN(A19)-5)&")","") ->  | H19: =IF(C19="","",IFERROR(RTD("cqg.rtd", ,"ContractData",A19, "LastTradeToday",, "T"),"")) ->  | I19: =IF(C19="","",IFERROR(RTD("cqg.rtd", ,"ContractData",A19, "NetLastTradeToday",, "T"),"")) ->  | J19: =IFERROR(RTD("cqg.rtd", ,"ContractData",A19, "PerCentNetLastTrade",, "T")/100,"") ->  | K19: =IFERROR(I19/RTD("cqg.rtd",,"StudyData",A19, "ATR", "MaType=Sim,Period=10", "ATR","D","-1","ALL",,,"FALSE","T")/100,"") ->  | L19: =IF(C19="","",IFERROR(RTD("cqg.rtd", ,"ContractData",A19, "OPen",, "T"),"")) ->  | M19: =IF(C19="","",IFERROR(RTD("cqg.rtd", ,"ContractData", A19, "HIgh",, "T"),"")) ->  | N19: =IF(C19="","",IFERROR(RTD("cqg.rtd", ,"ContractData",A19, "LOw",, "T"),"")) ->  | O19: =IF(C19="","",IFERROR(RTD("cqg.rtd", ,"ContractData",A19, "T_CVol",, "T"),"")) ->  | Q19: =IFERROR(O19/RTD("cqg.rtd",,"StudyData",A19, "MA", "InputChoice=Vol,MAType=Sim,Period=21", "MA","D","-1","all",,,,"T"),"") ->  | R19: =ARKW!R2 -> 
A20: =TRIM(ARKW!O3) ->  | B20: News | C20: =IFERROR(RTD("cqg.rtd", ,"ContractData",A20, "LongDescription",, "T")&" ("&RIGHT(A20,LEN(A20)-5)&")","") ->  | H20: =IF(C20="","",IFERROR(RTD("cqg.rtd", ,"ContractData",A20, "LastTradeToday",, "T"),"")) ->  | I20: =IF(C20="","",IFERROR(RTD("cqg.rtd", ,"ContractData",A20, "NetLastTradeToday",, "T"),"")) ->  | J20: =IFERROR(RTD("cqg.rtd", ,"ContractData",A20, "PerCentNetLastTrade",, "T")/100,"") ->  | K20: =IFERROR(I20/RTD("cqg.rtd",,"StudyData",A20, "ATR", "MaType=Sim,Period=10", "ATR","D","-1","ALL",,,"FALSE","T")/100,"") ->  | L20: =IF(C20="","",IFERROR(RTD("cqg.rtd", ,"ContractData",A20, "OPen",, "T"),"")) ->  | M20: =IF(C20="","",IFERROR(RTD("cqg.rtd", ,"ContractData", A20, "HIgh",, "T"),"")) ->  | N20: =IF(C20="","",IFERROR(RTD("cqg.rtd", ,"ContractData",A20, "LOw",, "T"),"")) ->  | O20: =IF(C20="","",IFERROR(RTD("cqg.rtd", ,"ContractData",A20, "T_CVol",, "T"),"")) ->  | Q20: =IFERROR(O20/RTD("cqg.rtd",,"StudyData",A20, "MA", "InputChoice=Vol,MAType=Sim,Period=21", "MA","D","-1","all",,,,"T"),"") ->  | R20: =ARKW!R3 -> 
A21: =TRIM(ARKW!O4) ->  | B21: News | C21: =IFERROR(RTD("cqg.rtd", ,"ContractData",A21, "LongDescription",, "T")&" ("&RIGHT(A21,LEN(A21)-5)&")","") ->  | H21: =IF(C21="","",IFERROR(RTD("cqg.rtd", ,"ContractData",A21, "LastTradeToday",, "T"),"")) ->  | I21: =IF(C21="","",IFERROR(RTD("cqg.rtd", ,"ContractData",A21, "NetLastTradeToday",, "T"),"")) ->  | J21: =IFERROR(RTD("cqg.rtd", ,"ContractData",A21, "PerCentNetLastTrade",, "T")/100,"") ->  | K21: =IFERROR(I21/RTD("cqg.rtd",,"StudyData",A21, "ATR", "MaType=Sim,Period=10", "ATR","D","-1","ALL",,,"FALSE","T")/100,"") ->  | L21: =IF(C21="","",IFERROR(RTD("cqg.rtd", ,"ContractData",A21, "OPen",, "T"),"")) ->  | M21: =IF(C21="","",IFERROR(RTD("cqg.rtd", ,"ContractData", A21, "HIgh",, "T"),"")) ->  | N21: =IF(C21="","",IFERROR(RTD("cqg.rtd", ,"ContractData",A21, "LOw",, "T"),"")) ->  | O21: =IF(C21="","",IFERROR(RTD("cqg.rtd", ,"ContractData",A21, "T_CVol",, "T"),"")) ->  | Q21: =IFERROR(O21/RTD("cqg.rtd",,"StudyData",A21, "MA", "InputChoice=Vol,MAType=Sim,Period=21", "MA","D","-1","all",,,,"T"),"") ->  | R21: =ARKW!R4 -> 
A22: =TRIM(ARKW!O5) ->  | B22: News | C22: =IFERROR(RTD("cqg.rtd", ,"ContractData",A22, "LongDescription",, "T")&" ("&RIGHT(A22,LEN(A22)-5)&")","") ->  | H22: =IF(C22="","",IFERROR(RTD("cqg.rtd", ,"ContractData",A22, "LastTradeToday",, "T"),"")) ->  | I22: =IF(C22="","",IFERROR(RTD("cqg.rtd", ,"ContractData",A22, "NetLastTradeToday",, "T"),"")) ->  | J22: =IFERROR(RTD("cqg.rtd", ,"ContractData",A22, "PerCentNetLastTrade",, "T")/100,"") ->  | K22: =IFERROR(I22/RTD("cqg.rtd",,"StudyData",A22, "ATR", "MaType=Sim,Period=10", "ATR","D","-1","ALL",,,"FALSE","T")/100,"") ->  | L22: =IF(C22="","",IFERROR(RTD("cqg.rtd", ,"ContractData",A22, "OPen",, "T"),"")) ->  | M22: =IF(C22="","",IFERROR(RTD("cqg.rtd", ,"ContractData", A22, "HIgh",, "T"),"")) ->  | N22: =IF(C22="","",IFERROR(RTD("cqg.rtd", ,"ContractData",A22, "LOw",, "T"),"")) ->  | O22: =IF(C22="","",IFERROR(RTD("cqg.rtd", ,"ContractData",A22, "T_CVol",, "T"),"")) ->  | Q22: =IFERROR(O22/RTD("cqg.rtd",,"StudyData",A22, "MA", "InputChoice=Vol,MAType=Sim,Period=21", "MA","D","-1","all",,,,"T"),"") ->  | R22: =ARKW!R5 -> 
A23: =TRIM(ARKW!O6) ->  | B23: News | C23: =IFERROR(RTD("cqg.rtd", ,"ContractData",A23, "LongDescription",, "T")&" ("&RIGHT(A23,LEN(A23)-5)&")","") ->  | H23: =IF(C23="","",IFERROR(RTD("cqg.rtd", ,"ContractData",A23, "LastTradeToday",, "T"),"")) ->  | I23: =IF(C23="","",IFERROR(RTD("cqg.rtd", ,"ContractData",A23, "NetLastTradeToday",, "T"),"")) ->  | J23: =IFERROR(RTD("cqg.rtd", ,"ContractData",A23, "PerCentNetLastTrade",, "T")/100,"") ->  | K23: =IFERROR(I23/RTD("cqg.rtd",,"StudyData",A23, "ATR", "MaType=Sim,Period=10", "ATR","D","-1","ALL",,,"FALSE","T")/100,"") ->  | L23: =IF(C23="","",IFERROR(RTD("cqg.rtd", ,"ContractData",A23, "OPen",, "T"),"")) ->  | M23: =IF(C23="","",IFERROR(RTD("cqg.rtd", ,"ContractData", A23, "HIgh",, "T"),"")) ->  | N23: =IF(C23="","",IFERROR(RTD("cqg.rtd", ,"ContractData",A23, "LOw",, "T"),"")) ->  | O23: =IF(C23="","",IFERROR(RTD("cqg.rtd", ,"ContractData",A23, "T_CVol",, "T"),"")) ->  | Q23: =IFERROR(O23/RTD("cqg.rtd",,"StudyData",A23, "MA", "InputChoice=Vol,MAType=Sim,Period=21", "MA","D","-1","all",,,,"T"),"") ->  | R23: =ARKW!R6 -> 
A24: =TRIM(ARKW!O7) ->  | B24: News | C24: =IFERROR(RTD("cqg.rtd", ,"ContractData",A24, "LongDescription",, "T")&" ("&RIGHT(A24,LEN(A24)-5)&")","") ->  | H24: =IF(C24="","",IFERROR(RTD("cqg.rtd", ,"ContractData",A24, "LastTradeToday",, "T"),"")) ->  | I24: =IF(C24="","",IFERROR(RTD("cqg.rtd", ,"ContractData",A24, "NetLastTradeToday",, "T"),"")) ->  | J24: =IFERROR(RTD("cqg.rtd", ,"ContractData",A24, "PerCentNetLastTrade",, "T")/100,"") ->  | K24: =IFERROR(I24/RTD("cqg.rtd",,"StudyData",A24, "ATR", "MaType=Sim,Period=10", "ATR","D","-1","ALL",,,"FALSE","T")/100,"") ->  | L24: =IF(C24="","",IFERROR(RTD("cqg.rtd", ,"ContractData",A24, "OPen",, "T"),"")) ->  | M24: =IF(C24="","",IFERROR(RTD("cqg.rtd", ,"ContractData", A24, "HIgh",, "T"),"")) ->  | N24: =IF(C24="","",IFERROR(RTD("cqg.rtd", ,"ContractData",A24, "LOw",, "T"),"")) ->  | O24: =IF(C24="","",IFERROR(RTD("cqg.rtd", ,"ContractData",A24, "T_CVol",, "T"),"")) ->  | Q24: =IFERROR(O24/RTD("cqg.rtd",,"StudyData",A24, "MA", "InputChoice=Vol,MAType=Sim,Period=21", "MA","D","-1","all",,,,"T"),"") ->  | R24: =ARKW!R7 -> 
A25: =TRIM(ARKW!O8) ->  | B25: News | C25: =IFERROR(RTD("cqg.rtd", ,"ContractData",A25, "LongDescription",, "T")&" ("&RIGHT(A25,LEN(A25)-5)&")","") ->  | H25: =IF(C25="","",IFERROR(RTD("cqg.rtd", ,"ContractData",A25, "LastTradeToday",, "T"),"")) ->  | I25: =IF(C25="","",IFERROR(RTD("cqg.rtd", ,"ContractData",A25, "NetLastTradeToday",, "T"),"")) ->  | J25: =IFERROR(RTD("cqg.rtd", ,"ContractData",A25, "PerCentNetLastTrade",, "T")/100,"") ->  | K25: =IFERROR(I25/RTD("cqg.rtd",,"StudyData",A25, "ATR", "MaType=Sim,Period=10", "ATR","D","-1","ALL",,,"FALSE","T")/100,"") ->  | L25: =IF(C25="","",IFERROR(RTD("cqg.rtd", ,"ContractData",A25, "OPen",, "T"),"")) ->  | M25: =IF(C25="","",IFERROR(RTD("cqg.rtd", ,"ContractData", A25, "HIgh",, "T"),"")) ->  | N25: =IF(C25="","",IFERROR(RTD("cqg.rtd", ,"ContractData",A25, "LOw",, "T"),"")) ->  | O25: =IF(C25="","",IFERROR(RTD("cqg.rtd", ,"ContractData",A25, "T_CVol",, "T"),"")) ->  | Q25: =IFERROR(O25/RTD("cqg.rtd",,"StudyData",A25, "MA", "InputChoice=Vol,MAType=Sim,Period=21", "MA","D","-1","all",,,,"T"),"") ->  | R25: =ARKW!R8 -> 
A26: =TRIM(ARKW!O9) ->  | B26: News | C26: =IFERROR(RTD("cqg.rtd", ,"ContractData",A26, "LongDescription",, "T")&" ("&RIGHT(A26,LEN(A26)-5)&")","") ->  | H26: =IF(C26="","",IFERROR(RTD("cqg.rtd", ,"ContractData",A26, "LastTradeToday",, "T"),"")) ->  | I26: =IF(C26="","",IFERROR(RTD("cqg.rtd", ,"ContractData",A26, "NetLastTradeToday",, "T"),"")) ->  | J26: =IFERROR(RTD("cqg.rtd", ,"ContractData",A26, "PerCentNetLastTrade",, "T")/100,"") ->  | K26: =IFERROR(I26/RTD("cqg.rtd",,"StudyData",A26, "ATR", "MaType=Sim,Period=10", "ATR","D","-1","ALL",,,"FALSE","T")/100,"") ->  | L26: =IF(C26="","",IFERROR(RTD("cqg.rtd", ,"ContractData",A26, "OPen",, "T"),"")) ->  | M26: =IF(C26="","",IFERROR(RTD("cqg.rtd", ,"ContractData", A26, "HIgh",, "T"),"")) ->  | N26: =IF(C26="","",IFERROR(RTD("cqg.rtd", ,"ContractData",A26, "LOw",, "T"),"")) ->  | O26: =IF(C26="","",IFERROR(RTD("cqg.rtd", ,"ContractData",A26, "T_CVol",, "T"),"")) ->  | Q26: =IFERROR(O26/RTD("cqg.rtd",,"StudyData",A26, "MA", "InputChoice=Vol,MAType=Sim,Period=21", "MA","D","-1","all",,,,"T"),"") ->  | R26: =ARKW!R9 -> 
A27: =TRIM(ARKW!O10) ->  | B27: News | C27: =IFERROR(RTD("cqg.rtd", ,"ContractData",A27, "LongDescription",, "T")&" ("&RIGHT(A27,LEN(A27)-5)&")","") ->  | H27: =IF(C27="","",IFERROR(RTD("cqg.rtd", ,"ContractData",A27, "LastTradeToday",, "T"),"")) ->  | I27: =IF(C27="","",IFERROR(RTD("cqg.rtd", ,"ContractData",A27, "NetLastTradeToday",, "T"),"")) ->  | J27: =IFERROR(RTD("cqg.rtd", ,"ContractData",A27, "PerCentNetLastTrade",, "T")/100,"") ->  | K27: =IFERROR(I27/RTD("cqg.rtd",,"StudyData",A27, "ATR", "MaType=Sim,Period=10", "ATR","D","-1","ALL",,,"FALSE","T")/100,"") ->  | L27: =IF(C27="","",IFERROR(RTD("cqg.rtd", ,"ContractData",A27, "OPen",, "T"),"")) ->  | M27: =IF(C27="","",IFERROR(RTD("cqg.rtd", ,"ContractData", A27, "HIgh",, "T"),"")) ->  | N27: =IF(C27="","",IFERROR(RTD("cqg.rtd", ,"ContractData",A27, "LOw",, "T"),"")) ->  | O27: =IF(C27="","",IFERROR(RTD("cqg.rtd", ,"ContractData",A27, "T_CVol",, "T"),"")) ->  | Q27: =IFERROR(O27/RTD("cqg.rtd",,"StudyData",A27, "MA", "InputChoice=Vol,MAType=Sim,Period=21", "MA","D","-1","all",,,,"T"),"") ->  | R27: =ARKW!R10 ->  | S27: Bottom 15 Negative Performing Companies
A28: =TRIM(ARKW!O11) ->  | B28: News | C28: =IFERROR(RTD("cqg.rtd", ,"ContractData",A28, "LongDescription",, "T")&" ("&RIGHT(A28,LEN(A28)-5)&")","") ->  | H28: =IF(C28="","",IFERROR(RTD("cqg.rtd", ,"ContractData",A28, "LastTradeToday",, "T"),"")) ->  | I28: =IF(C28="","",IFERROR(RTD("cqg.rtd", ,"ContractData",A28, "NetLastTradeToday",, "T"),"")) ->  | J28: =IFERROR(RTD("cqg.rtd", ,"ContractData",A28, "PerCentNetLastTrade",, "T")/100,"") ->  | K28: =IFERROR(I28/RTD("cqg.rtd",,"StudyData",A28, "ATR", "MaType=Sim,Period=10", "ATR","D","-1","ALL",,,"FALSE","T")/100,"") ->  | L28: =IF(C28="","",IFERROR(RTD("cqg.rtd", ,"ContractData",A28, "OPen",, "T"),"")) ->  | M28: =IF(C28="","",IFERROR(RTD("cqg.rtd", ,"ContractData", A28, "HIgh",, "T"),"")) ->  | N28: =IF(C28="","",IFERROR(RTD("cqg.rtd", ,"ContractData",A28, "LOw",, "T"),"")) ->  | O28: =IF(C28="","",IFERROR(RTD("cqg.rtd", ,"ContractData",A28, "T_CVol",, "T"),"")) ->  | Q28: =IFERROR(O28/RTD("cqg.rtd",,"StudyData",A28, "MA", "InputChoice=Vol,MAType=Sim,Period=21", "MA","D","-1","all",,,,"T"),"") ->  | R28: =ARKW!R11 -> 
A29: =TRIM(ARKW!O12) ->  | B29: News | C29: =IFERROR(RTD("cqg.rtd", ,"ContractData",A29, "LongDescription",, "T")&" ("&RIGHT(A29,LEN(A29)-5)&")","") ->  | H29: =IF(C29="","",IFERROR(RTD("cqg.rtd", ,"ContractData",A29, "LastTradeToday",, "T"),"")) ->  | I29: =IF(C29="","",IFERROR(RTD("cqg.rtd", ,"ContractData",A29, "NetLastTradeToday",, "T"),"")) ->  | J29: =IFERROR(RTD("cqg.rtd", ,"ContractData",A29, "PerCentNetLastTrade",, "T")/100,"") ->  | K29: =IFERROR(I29/RTD("cqg.rtd",,"StudyData",A29, "ATR", "MaType=Sim,Period=10", "ATR","D","-1","ALL",,,"FALSE","T")/100,"") ->  | L29: =IF(C29="","",IFERROR(RTD("cqg.rtd", ,"ContractData",A29, "OPen",, "T"),"")) ->  | M29: =IF(C29="","",IFERROR(RTD("cqg.rtd", ,"ContractData", A29, "HIgh",, "T"),"")) ->  | N29: =IF(C29="","",IFERROR(RTD("cqg.rtd", ,"ContractData",A29, "LOw",, "T"),"")) ->  | O29: =IF(C29="","",IFERROR(RTD("cqg.rtd", ,"ContractData",A29, "T_CVol",, "T"),"")) ->  | Q29: =IFERROR(O29/RTD("cqg.rtd",,"StudyData",A29, "MA", "InputChoice=Vol,MAType=Sim,Period=21", "MA","D","-1","all",,,,"T"),"") ->  | R29: =ARKW!R12 -> 
A30: =TRIM(ARKW!O13) ->  | B30: News | C30: =IFERROR(RTD("cqg.rtd", ,"ContractData",A30, "LongDescription",, "T")&" ("&RIGHT(A30,LEN(A30)-5)&")","") ->  | H30: =IF(C30="","",IFERROR(RTD("cqg.rtd", ,"ContractData",A30, "LastTradeToday",, "T"),"")) ->  | I30: =IF(C30="","",IFERROR(RTD("cqg.rtd", ,"ContractData",A30, "NetLastTradeToday",, "T"),"")) ->  | J30: =IFERROR(RTD("cqg.rtd", ,"ContractData",A30, "PerCentNetLastTrade",, "T")/100,"") ->  | K30: =IFERROR(I30/RTD("cqg.rtd",,"StudyData",A30, "ATR", "MaType=Sim,Period=10", "ATR","D","-1","ALL",,,"FALSE","T")/100,"") ->  | L30: =IF(C30="","",IFERROR(RTD("cqg.rtd", ,"ContractData",A30, "OPen",, "T"),"")) ->  | M30: =IF(C30="","",IFERROR(RTD("cqg.rtd", ,"ContractData", A30, "HIgh",, "T"),"")) ->  | N30: =IF(C30="","",IFERROR(RTD("cqg.rtd", ,"ContractData",A30, "LOw",, "T"),"")) ->  | O30: =IF(C30="","",IFERROR(RTD("cqg.rtd", ,"ContractData",A30, "T_CVol",, "T"),"")) ->  | Q30: =IFERROR(O30/RTD("cqg.rtd",,"StudyData",A30, "MA", "InputChoice=Vol,MAType=Sim,Period=21", "MA","D","-1","all",,,,"T"),"") ->  | R30: =ARKW!R13 -> 
A31: =TRIM(ARKW!O14) ->  | B31: News | C31: =IFERROR(RTD("cqg.rtd", ,"ContractData",A31, "LongDescription",, "T")&" ("&RIGHT(A31,LEN(A31)-5)&")","") ->  | H31: =IF(C31="","",IFERROR(RTD("cqg.rtd", ,"ContractData",A31, "LastTradeToday",, "T"),"")) ->  | I31: =IF(C31="","",IFERROR(RTD("cqg.rtd", ,"ContractData",A31, "NetLastTradeToday",, "T"),"")) ->  | J31: =IFERROR(RTD("cqg.rtd", ,"ContractData",A31, "PerCentNetLastTrade",, "T")/100,"") ->  | K31: =IFERROR(I31/RTD("cqg.rtd",,"StudyData",A31, "ATR", "MaType=Sim,Period=10", "ATR","D","-1","ALL",,,"FALSE","T")/100,"") ->  | L31: =IF(C31="","",IFERROR(RTD("cqg.rtd", ,"ContractData",A31, "OPen",, "T"),"")) ->  | M31: =IF(C31="","",IFERROR(RTD("cqg.rtd", ,"ContractData", A31, "HIgh",, "T"),"")) ->  | N31: =IF(C31="","",IFERROR(RTD("cqg.rtd", ,"ContractData",A31, "LOw",, "T"),"")) ->  | O31: =IF(C31="","",IFERROR(RTD("cqg.rtd", ,"ContractData",A31, "T_CVol",, "T"),"")) ->  | Q31: =IFERROR(O31/RTD("cqg.rtd",,"StudyData",A31, "MA", "InputChoice=Vol,MAType=Sim,Period=21", "MA","D","-1","all",,,,"T"),"") ->  | R31: =ARKW!R14 -> 
A32: =TRIM(ARKW!O15) ->  | B32: News | C32: =IFERROR(RTD("cqg.rtd", ,"ContractData",A32, "LongDescription",, "T")&" ("&RIGHT(A32,LEN(A32)-5)&")","") ->  | H32: =IF(C32="","",IFERROR(RTD("cqg.rtd", ,"ContractData",A32, "LastTradeToday",, "T"),"")) ->  | I32: =IF(C32="","",IFERROR(RTD("cqg.rtd", ,"ContractData",A32, "NetLastTradeToday",, "T"),"")) ->  | J32: =IFERROR(RTD("cqg.rtd", ,"ContractData",A32, "PerCentNetLastTrade",, "T")/100,"") ->  | K32: =IFERROR(I32/RTD("cqg.rtd",,"StudyData",A32, "ATR", "MaType=Sim,Period=10", "ATR","D","-1","ALL",,,"FALSE","T")/100,"") ->  | L32: =IF(C32="","",IFERROR(RTD("cqg.rtd", ,"ContractData",A32, "OPen",, "T"),"")) ->  | M32: =IF(C32="","",IFERROR(RTD("cqg.rtd", ,"ContractData", A32, "HIgh",, "T"),"")) ->  | N32: =IF(C32="","",IFERROR(RTD("cqg.rtd", ,"ContractData",A32, "LOw",, "T"),"")) ->  | O32: =IF(C32="","",IFERROR(RTD("cqg.rtd", ,"ContractData",A32, "T_CVol",, "T"),"")) ->  | Q32: =IFERROR(O32/RTD("cqg.rtd",,"StudyData",A32, "MA", "InputChoice=Vol,MAType=Sim,Period=21", "MA","D","-1","all",,,,"T"),"") ->  | R32: =ARKW!R15 -> 
C33: Bottom 15 Description | H33: Last | I33: NC | J33: %NC | K33: NC/ATR | L33: Open | M33: High | N33: Low | O33: Volume | Q33: Ratio
A34: =TRIM(ARKW!AC1) ->  | B34: News | C34: =IFERROR(RTD("cqg.rtd", ,"ContractData",A34, "LongDescription",, "T")&" ("&RIGHT(A34,LEN(A34)-5)&")","") ->  | H34: =IF(C34="","",IFERROR(RTD("cqg.rtd", ,"ContractData",A34, "LastTradeToday",, "T"),"")) ->  | I34: =IF(C34="","",IFERROR(RTD("cqg.rtd", ,"ContractData",A34, "NetLastTradeToday",, "T"),"")) ->  | J34: =IFERROR(RTD("cqg.rtd", ,"ContractData",A34, "PerCentNetLastTrade",, "T")/100,"") ->  | K34: =IFERROR(I34/RTD("cqg.rtd",,"StudyData",A34, "ATR", "MaType=Sim,Period=10", "ATR","D","-1","ALL",,,"FALSE","T")/100,"") ->  | L34: =IF(C34="","",IFERROR(RTD("cqg.rtd", ,"ContractData",A34, "OPen",, "T"),"")) ->  | M34: =IF(C34="","",IFERROR(RTD("cqg.rtd", ,"ContractData", A34, "HIgh",, "T"),"")) ->  | N34: =IF(C34="","",IFERROR(RTD("cqg.rtd", ,"ContractData",A34, "LOw",, "T"),"")) ->  | O34: =IF(C34="","",IFERROR(RTD("cqg.rtd", ,"ContractData",A34, "T_CVol",, "T"),"")) ->  | Q34: =IFERROR(O34/RTD("cqg.rtd",,"StudyData",A34, "MA", "InputChoice=Vol,MAType=Sim,Period=21", "MA","D","-1","all",,,,"T"),"") ->  | R34: =ARKW!AH1 -> 
A35: =TRIM(ARKW!AC2) ->  | B35: News | C35: =IFERROR(RTD("cqg.rtd", ,"ContractData",A35, "LongDescription",, "T")&" ("&RIGHT(A35,LEN(A35)-5)&")","") ->  | H35: =IF(C35="","",IFERROR(RTD("cqg.rtd", ,"ContractData",A35, "LastTradeToday",, "T"),"")) ->  | I35: =IF(C35="","",IFERROR(RTD("cqg.rtd", ,"ContractData",A35, "NetLastTradeToday",, "T"),"")) ->  | J35: =IFERROR(RTD("cqg.rtd", ,"ContractData",A35, "PerCentNetLastTrade",, "T")/100,"") ->  | K35: =IFERROR(I35/RTD("cqg.rtd",,"StudyData",A35, "ATR", "MaType=Sim,Period=10", "ATR","D","-1","ALL",,,"FALSE","T")/100,"") ->  | L35: =IF(C35="","",IFERROR(RTD("cqg.rtd", ,"ContractData",A35, "OPen",, "T"),"")) ->  | M35: =IF(C35="","",IFERROR(RTD("cqg.rtd", ,"ContractData", A35, "HIgh",, "T"),"")) ->  | N35: =IF(C35="","",IFERROR(RTD("cqg.rtd", ,"ContractData",A35, "LOw",, "T"),"")) ->  | O35: =IF(C35="","",IFERROR(RTD("cqg.rtd", ,"ContractData",A35, "T_CVol",, "T"),"")) ->  | Q35: =IFERROR(O35/RTD("cqg.rtd",,"StudyData",A35, "MA", "InputChoice=Vol,MAType=Sim,Period=21", "MA","D","-1","all",,,,"T"),"") ->  | R35: =ARKW!AH2 -> 
A36: =TRIM(ARKW!AC3) ->  | B36: News | C36: =IFERROR(RTD("cqg.rtd", ,"ContractData",A36, "LongDescription",, "T")&" ("&RIGHT(A36,LEN(A36)-5)&")","") ->  | H36: =IF(C36="","",IFERROR(RTD("cqg.rtd", ,"ContractData",A36, "LastTradeToday",, "T"),"")) ->  | I36: =IF(C36="","",IFERROR(RTD("cqg.rtd", ,"ContractData",A36, "NetLastTradeToday",, "T"),"")) ->  | J36: =IFERROR(RTD("cqg.rtd", ,"ContractData",A36, "PerCentNetLastTrade",, "T")/100,"") ->  | K36: =IFERROR(I36/RTD("cqg.rtd",,"StudyData",A36, "ATR", "MaType=Sim,Period=10", "ATR","D","-1","ALL",,,"FALSE","T")/100,"") ->  | L36: =IF(C36="","",IFERROR(RTD("cqg.rtd", ,"ContractData",A36, "OPen",, "T"),"")) ->  | M36: =IF(C36="","",IFERROR(RTD("cqg.rtd", ,"ContractData", A36, "HIgh",, "T"),"")) ->  | N36: =IF(C36="","",IFERROR(RTD("cqg.rtd", ,"ContractData",A36, "LOw",, "T"),"")) ->  | O36: =IF(C36="","",IFERROR(RTD("cqg.rtd", ,"ContractData",A36, "T_CVol",, "T"),"")) ->  | Q36: =IFERROR(O36/RTD("cqg.rtd",,"StudyData",A36, "MA", "InputChoice=Vol,MAType=Sim,Period=21", "MA","D","-1","all",,,,"T"),"") ->  | R36: =ARKW!AH3 -> 
A37: =TRIM(ARKW!AC4) ->  | B37: News | C37: =IFERROR(RTD("cqg.rtd", ,"ContractData",A37, "LongDescription",, "T")&" ("&RIGHT(A37,LEN(A37)-5)&")","") ->  | H37: =IF(C37="","",IFERROR(RTD("cqg.rtd", ,"ContractData",A37, "LastTradeToday",, "T"),"")) ->  | I37: =IF(C37="","",IFERROR(RTD("cqg.rtd", ,"ContractData",A37, "NetLastTradeToday",, "T"),"")) ->  | J37: =IFERROR(RTD("cqg.rtd", ,"ContractData",A37, "PerCentNetLastTrade",, "T")/100,"") ->  | K37: =IFERROR(I37/RTD("cqg.rtd",,"StudyData",A37, "ATR", "MaType=Sim,Period=10", "ATR","D","-1","ALL",,,"FALSE","T")/100,"") ->  | L37: =IF(C37="","",IFERROR(RTD("cqg.rtd", ,"ContractData",A37, "OPen",, "T"),"")) ->  | M37: =IF(C37="","",IFERROR(RTD("cqg.rtd", ,"ContractData", A37, "HIgh",, "T"),"")) ->  | N37: =IF(C37="","",IFERROR(RTD("cqg.rtd", ,"ContractData",A37, "LOw",, "T"),"")) ->  | O37: =IF(C37="","",IFERROR(RTD("cqg.rtd", ,"ContractData",A37, "T_CVol",, "T"),"")) ->  | Q37: =IFERROR(O37/RTD("cqg.rtd",,"StudyData",A37, "MA", "InputChoice=Vol,MAType=Sim,Period=21", "MA","D","-1","all",,,,"T"),"") ->  | R37: =ARKW!AH4 -> 
A38: =TRIM(ARKW!AC5) ->  | B38: News | C38: =IFERROR(RTD("cqg.rtd", ,"ContractData",A38, "LongDescription",, "T")&" ("&RIGHT(A38,LEN(A38)-5)&")","") ->  | H38: =IF(C38="","",IFERROR(RTD("cqg.rtd", ,"ContractData",A38, "LastTradeToday",, "T"),"")) ->  | I38: =IF(C38="","",IFERROR(RTD("cqg.rtd", ,"ContractData",A38, "NetLastTradeToday",, "T"),"")) ->  | J38: =IFERROR(RTD("cqg.rtd", ,"ContractData",A38, "PerCentNetLastTrade",, "T")/100,"") ->  | K38: =IFERROR(I38/RTD("cqg.rtd",,"StudyData",A38, "ATR", "MaType=Sim,Period=10", "ATR","D","-1","ALL",,,"FALSE","T")/100,"") ->  | L38: =IF(C38="","",IFERROR(RTD("cqg.rtd", ,"ContractData",A38, "OPen",, "T"),"")) ->  | M38: =IF(C38="","",IFERROR(RTD("cqg.rtd", ,"ContractData", A38, "HIgh",, "T"),"")) ->  | N38: =IF(C38="","",IFERROR(RTD("cqg.rtd", ,"ContractData",A38, "LOw",, "T"),"")) ->  | O38: =IF(C38="","",IFERROR(RTD("cqg.rtd", ,"ContractData",A38, "T_CVol",, "T"),"")) ->  | Q38: =IFERROR(O38/RTD("cqg.rtd",,"StudyData",A38, "MA", "InputChoice=Vol,MAType=Sim,Period=21", "MA","D","-1","all",,,,"T"),"") ->  | R38: =ARKW!AH5 -> 
A39: =TRIM(ARKW!AC6) ->  | B39: News | C39: =IFERROR(RTD("cqg.rtd", ,"ContractData",A39, "LongDescription",, "T")&" ("&RIGHT(A39,LEN(A39)-5)&")","") ->  | H39: =IF(C39="","",IFERROR(RTD("cqg.rtd", ,"ContractData",A39, "LastTradeToday",, "T"),"")) ->  | I39: =IF(C39="","",IFERROR(RTD("cqg.rtd", ,"ContractData",A39, "NetLastTradeToday",, "T"),"")) ->  | J39: =IFERROR(RTD("cqg.rtd", ,"ContractData",A39, "PerCentNetLastTrade",, "T")/100,"") ->  | K39: =IFERROR(I39/RTD("cqg.rtd",,"StudyData",A39, "ATR", "MaType=Sim,Period=10", "ATR","D","-1","ALL",,,"FALSE","T")/100,"") ->  | L39: =IF(C39="","",IFERROR(RTD("cqg.rtd", ,"ContractData",A39, "OPen",, "T"),"")) ->  | M39: =IF(C39="","",IFERROR(RTD("cqg.rtd", ,"ContractData", A39, "HIgh",, "T"),"")) ->  | N39: =IF(C39="","",IFERROR(RTD("cqg.rtd", ,"ContractData",A39, "LOw",, "T"),"")) ->  | O39: =IF(C39="","",IFERROR(RTD("cqg.rtd", ,"ContractData",A39, "T_CVol",, "T"),"")) ->  | Q39: =IFERROR(O39/RTD("cqg.rtd",,"StudyData",A39, "MA", "InputChoice=Vol,MAType=Sim,Period=21", "MA","D","-1","all",,,,"T"),"") ->  | R39: =ARKW!AH6 -> 
A40: =TRIM(ARKW!AC7) ->  | B40: News | C40: =IFERROR(RTD("cqg.rtd", ,"ContractData",A40, "LongDescription",, "T")&" ("&RIGHT(A40,LEN(A40)-5)&")","") ->  | H40: =IF(C40="","",IFERROR(RTD("cqg.rtd", ,"ContractData",A40, "LastTradeToday",, "T"),"")) ->  | I40: =IF(C40="","",IFERROR(RTD("cqg.rtd", ,"ContractData",A40, "NetLastTradeToday",, "T"),"")) ->  | J40: =IFERROR(RTD("cqg.rtd", ,"ContractData",A40, "PerCentNetLastTrade",, "T")/100,"") ->  | K40: =IFERROR(I40/RTD("cqg.rtd",,"StudyData",A40, "ATR", "MaType=Sim,Period=10", "ATR","D","-1","ALL",,,"FALSE","T")/100,"") ->  | L40: =IF(C40="","",IFERROR(RTD("cqg.rtd", ,"ContractData",A40, "OPen",, "T"),"")) ->  | M40: =IF(C40="","",IFERROR(RTD("cqg.rtd", ,"ContractData", A40, "HIgh",, "T"),"")) ->  | N40: =IF(C40="","",IFERROR(RTD("cqg.rtd", ,"ContractData",A40, "LOw",, "T"),"")) ->  | O40: =IF(C40="","",IFERROR(RTD("cqg.rtd", ,"ContractData",A40, "T_CVol",, "T"),"")) ->  | Q40: =IFERROR(O40/RTD("cqg.rtd",,"StudyData",A40, "MA", "InputChoice=Vol,MAType=Sim,Period=21", "MA","D","-1","all",,,,"T"),"") ->  | R40: =ARKW!AH7 -> 
A41: =TRIM(ARKW!AC8) ->  | B41: News | C41: =IFERROR(RTD("cqg.rtd", ,"ContractData",A41, "LongDescription",, "T")&" ("&RIGHT(A41,LEN(A41)-5)&")","") ->  | H41: =IF(C41="","",IFERROR(RTD("cqg.rtd", ,"ContractData",A41, "LastTradeToday",, "T"),"")) ->  | I41: =IF(C41="","",IFERROR(RTD("cqg.rtd", ,"ContractData",A41, "NetLastTradeToday",, "T"),"")) ->  | J41: =IFERROR(RTD("cqg.rtd", ,"ContractData",A41, "PerCentNetLastTrade",, "T")/100,"") ->  | K41: =IFERROR(I41/RTD("cqg.rtd",,"StudyData",A41, "ATR", "MaType=Sim,Period=10", "ATR","D","-1","ALL",,,"FALSE","T")/100,"") ->  | L41: =IF(C41="","",IFERROR(RTD("cqg.rtd", ,"ContractData",A41, "OPen",, "T"),"")) ->  | M41: =IF(C41="","",IFERROR(RTD("cqg.rtd", ,"ContractData", A41, "HIgh",, "T"),"")) ->  | N41: =IF(C41="","",IFERROR(RTD("cqg.rtd", ,"ContractData",A41, "LOw",, "T"),"")) ->  | O41: =IF(C41="","",IFERROR(RTD("cqg.rtd", ,"ContractData",A41, "T_CVol",, "T"),"")) ->  | Q41: =IFERROR(O41/RTD("cqg.rtd",,"StudyData",A41, "MA", "InputChoice=Vol,MAType=Sim,Period=21", "MA","D","-1","all",,,,"T"),"") ->  | R41: =ARKW!AH8 -> 
A42: =TRIM(ARKW!AC9) ->  | B42: News | C42: =IFERROR(RTD("cqg.rtd", ,"ContractData",A42, "LongDescription",, "T")&" ("&RIGHT(A42,LEN(A42)-5)&")","") ->  | H42: =IF(C42="","",IFERROR(RTD("cqg.rtd", ,"ContractData",A42, "LastTradeToday",, "T"),"")) ->  | I42: =IF(C42="","",IFERROR(RTD("cqg.rtd", ,"ContractData",A42, "NetLastTradeToday",, "T"),"")) ->  | J42: =IFERROR(RTD("cqg.rtd", ,"ContractData",A42, "PerCentNetLastTrade",, "T")/100,"") ->  | K42: =IFERROR(I42/RTD("cqg.rtd",,"StudyData",A42, "ATR", "MaType=Sim,Period=10", "ATR","D","-1","ALL",,,"FALSE","T")/100,"") ->  | L42: =IF(C42="","",IFERROR(RTD("cqg.rtd", ,"ContractData",A42, "OPen",, "T"),"")) ->  | M42: =IF(C42="","",IFERROR(RTD("cqg.rtd", ,"ContractData", A42, "HIgh",, "T"),"")) ->  | N42: =IF(C42="","",IFERROR(RTD("cqg.rtd", ,"ContractData",A42, "LOw",, "T"),"")) ->  | O42: =IF(C42="","",IFERROR(RTD("cqg.rtd", ,"ContractData",A42, "T_CVol",, "T"),"")) ->  | Q42: =IFERROR(O42/RTD("cqg.rtd",,"StudyData",A42, "MA", "InputChoice=Vol,MAType=Sim,Period=21", "MA","D","-1","all",,,,"T"),"") ->  | R42: =ARKW!AH9 -> 
A43: =TRIM(ARKW!AC10) ->  | B43: News | C43: =IFERROR(RTD("cqg.rtd", ,"ContractData",A43, "LongDescription",, "T")&" ("&RIGHT(A43,LEN(A43)-5)&")","") ->  | H43: =IF(C43="","",IFERROR(RTD("cqg.rtd", ,"ContractData",A43, "LastTradeToday",, "T"),"")) ->  | I43: =IF(C43="","",IFERROR(RTD("cqg.rtd", ,"ContractData",A43, "NetLastTradeToday",, "T"),"")) ->  | J43: =IFERROR(RTD("cqg.rtd", ,"ContractData",A43, "PerCentNetLastTrade",, "T")/100,"") ->  | K43: =IFERROR(I43/RTD("cqg.rtd",,"StudyData",A43, "ATR", "MaType=Sim,Period=10", "ATR","D","-1","ALL",,,"FALSE","T")/100,"") ->  | L43: =IF(C43="","",IFERROR(RTD("cqg.rtd", ,"ContractData",A43, "OPen",, "T"),"")) ->  | M43: =IF(C43="","",IFERROR(RTD("cqg.rtd", ,"ContractData", A43, "HIgh",, "T"),"")) ->  | N43: =IF(C43="","",IFERROR(RTD("cqg.rtd", ,"ContractData",A43, "LOw",, "T"),"")) ->  | O43: =IF(C43="","",IFERROR(RTD("cqg.rtd", ,"ContractData",A43, "T_CVol",, "T"),"")) ->  | Q43: =IFERROR(O43/RTD("cqg.rtd",,"StudyData",A43, "MA", "InputChoice=Vol,MAType=Sim,Period=21", "MA","D","-1","all",,,,"T"),"") ->  | R43: =ARKW!AH10 -> 
A44: =TRIM(ARKW!AC11) ->  | B44: News | C44: =IFERROR(RTD("cqg.rtd", ,"ContractData",A44, "LongDescription",, "T")&" ("&RIGHT(A44,LEN(A44)-5)&")","") ->  | H44: =IF(C44="","",IFERROR(RTD("cqg.rtd", ,"ContractData",A44, "LastTradeToday",, "T"),"")) ->  | I44: =IF(C44="","",IFERROR(RTD("cqg.rtd", ,"ContractData",A44, "NetLastTradeToday",, "T"),"")) ->  | J44: =IFERROR(RTD("cqg.rtd", ,"ContractData",A44, "PerCentNetLastTrade",, "T")/100,"") ->  | K44: =IFERROR(I44/RTD("cqg.rtd",,"StudyData",A44, "ATR", "MaType=Sim,Period=10", "ATR","D","-1","ALL",,,"FALSE","T")/100,"") ->  | L44: =IF(C44="","",IFERROR(RTD("cqg.rtd", ,"ContractData",A44, "OPen",, "T"),"")) ->  | M44: =IF(C44="","",IFERROR(RTD("cqg.rtd", ,"ContractData", A44, "HIgh",, "T"),"")) ->  | N44: =IF(C44="","",IFERROR(RTD("cqg.rtd", ,"ContractData",A44, "LOw",, "T"),"")) ->  | O44: =IF(C44="","",IFERROR(RTD("cqg.rtd", ,"ContractData",A44, "T_CVol",, "T"),"")) ->  | Q44: =IFERROR(O44/RTD("cqg.rtd",,"StudyData",A44, "MA", "InputChoice=Vol,MAType=Sim,Period=21", "MA","D","-1","all",,,,"T"),"") ->  | R44: =ARKW!AH11 -> 
A45: =TRIM(ARKW!AC12) ->  | B45: News | C45: =IFERROR(RTD("cqg.rtd", ,"ContractData",A45, "LongDescription",, "T")&" ("&RIGHT(A45,LEN(A45)-5)&")","") ->  | H45: =IF(C45="","",IFERROR(RTD("cqg.rtd", ,"ContractData",A45, "LastTradeToday",, "T"),"")) ->  | I45: =IF(C45="","",IFERROR(RTD("cqg.rtd", ,"ContractData",A45, "NetLastTradeToday",, "T"),"")) ->  | J45: =IFERROR(RTD("cqg.rtd", ,"ContractData",A45, "PerCentNetLastTrade",, "T")/100,"") ->  | K45: =IFERROR(I45/RTD("cqg.rtd",,"StudyData",A45, "ATR", "MaType=Sim,Period=10", "ATR","D","-1","ALL",,,"FALSE","T")/100,"") ->  | L45: =IF(C45="","",IFERROR(RTD("cqg.rtd", ,"ContractData",A45, "OPen",, "T"),"")) ->  | M45: =IF(C45="","",IFERROR(RTD("cqg.rtd", ,"ContractData", A45, "HIgh",, "T"),"")) ->  | N45: =IF(C45="","",IFERROR(RTD("cqg.rtd", ,"ContractData",A45, "LOw",, "T"),"")) ->  | O45: =IF(C45="","",IFERROR(RTD("cqg.rtd", ,"ContractData",A45, "T_CVol",, "T"),"")) ->  | Q45: =IFERROR(O45/RTD("cqg.rtd",,"StudyData",A45, "MA", "InputChoice=Vol,MAType=Sim,Period=21", "MA","D","-1","all",,,,"T"),"") ->  | R45: =ARKW!AH12 -> 
A46: =TRIM(ARKW!AC13) ->  | B46: News | C46: =IFERROR(RTD("cqg.rtd", ,"ContractData",A46, "LongDescription",, "T")&" ("&RIGHT(A46,LEN(A46)-5)&")","") ->  | H46: =IF(C46="","",IFERROR(RTD("cqg.rtd", ,"ContractData",A46, "LastTradeToday",, "T"),"")) ->  | I46: =IF(C46="","",IFERROR(RTD("cqg.rtd", ,"ContractData",A46, "NetLastTradeToday",, "T"),"")) ->  | J46: =IFERROR(RTD("cqg.rtd", ,"ContractData",A46, "PerCentNetLastTrade",, "T")/100,"") ->  | K46: =IFERROR(I46/RTD("cqg.rtd",,"StudyData",A46, "ATR", "MaType=Sim,Period=10", "ATR","D","-1","ALL",,,"FALSE","T")/100,"") ->  | L46: =IF(C46="","",IFERROR(RTD("cqg.rtd", ,"ContractData",A46, "OPen",, "T"),"")) ->  | M46: =IF(C46="","",IFERROR(RTD("cqg.rtd", ,"ContractData", A46, "HIgh",, "T"),"")) ->  | N46: =IF(C46="","",IFERROR(RTD("cqg.rtd", ,"ContractData",A46, "LOw",, "T"),"")) ->  | O46: =IF(C46="","",IFERROR(RTD("cqg.rtd", ,"ContractData",A46, "T_CVol",, "T"),"")) ->  | Q46: =IFERROR(O46/RTD("cqg.rtd",,"StudyData",A46, "MA", "InputChoice=Vol,MAType=Sim,Period=21", "MA","D","-1","all",,,,"T"),"") ->  | R46: =ARKW!AH13 -> 
A47: =TRIM(ARKW!AC14) ->  | B47: News | C47: =IFERROR(RTD("cqg.rtd", ,"ContractData",A47, "LongDescription",, "T")&" ("&RIGHT(A47,LEN(A47)-5)&")","") ->  | H47: =IF(C47="","",IFERROR(RTD("cqg.rtd", ,"ContractData",A47, "LastTradeToday",, "T"),"")) ->  | I47: =IF(C47="","",IFERROR(RTD("cqg.rtd", ,"ContractData",A47, "NetLastTradeToday",, "T"),"")) ->  | J47: =IFERROR(RTD("cqg.rtd", ,"ContractData",A47, "PerCentNetLastTrade",, "T")/100,"") ->  | K47: =IFERROR(I47/RTD("cqg.rtd",,"StudyData",A47, "ATR", "MaType=Sim,Period=10", "ATR","D","-1","ALL",,,"FALSE","T")/100,"") ->  | L47: =IF(C47="","",IFERROR(RTD("cqg.rtd", ,"ContractData",A47, "OPen",, "T"),"")) ->  | M47: =IF(C47="","",IFERROR(RTD("cqg.rtd", ,"ContractData", A47, "HIgh",, "T"),"")) ->  | N47: =IF(C47="","",IFERROR(RTD("cqg.rtd", ,"ContractData",A47, "LOw",, "T"),"")) ->  | O47: =IF(C47="","",IFERROR(RTD("cqg.rtd", ,"ContractData",A47, "T_CVol",, "T"),"")) ->  | Q47: =IFERROR(O47/RTD("cqg.rtd",,"StudyData",A47, "MA", "InputChoice=Vol,MAType=Sim,Period=21", "MA","D","-1","all",,,,"T"),"") ->  | R47: =ARKW!AH14 -> 
A48: =TRIM(ARKW!AC15) ->  | B48: News | C48: =IFERROR(RTD("cqg.rtd", ,"ContractData",A48, "LongDescription",, "T")&" ("&RIGHT(A48,LEN(A48)-5)&")","") ->  | H48: =IF(C48="","",IFERROR(RTD("cqg.rtd", ,"ContractData",A48, "LastTradeToday",, "T"),"")) ->  | I48: =IF(C48="","",IFERROR(RTD("cqg.rtd", ,"ContractData",A48, "NetLastTradeToday",, "T"),"")) ->  | J48: =IFERROR(RTD("cqg.rtd", ,"ContractData",A48, "PerCentNetLastTrade",, "T")/100,"") ->  | K48: =IFERROR(I48/RTD("cqg.rtd",,"StudyData",A48, "ATR", "MaType=Sim,Period=10", "ATR","D","-1","ALL",,,"FALSE","T")/100,"") ->  | L48: =IF(C48="","",IFERROR(RTD("cqg.rtd", ,"ContractData",A48, "OPen",, "T"),"")) ->  | M48: =IF(C48="","",IFERROR(RTD("cqg.rtd", ,"ContractData", A48, "HIgh",, "T"),"")) ->  | N48: =IF(C48="","",IFERROR(RTD("cqg.rtd", ,"ContractData",A48, "LOw",, "T"),"")) ->  | O48: =IF(C48="","",IFERROR(RTD("cqg.rtd", ,"ContractData",A48, "T_CVol",, "T"),"")) ->  | Q48: =IFERROR(O48/RTD("cqg.rtd",,"StudyData",A48, "MA", "InputChoice=Vol,MAType=Sim,Period=21", "MA","D","-1","all",,,,"T"),"") ->  | R48: =ARKW!AH15 -> 
C49: CQG Inc., Copyright © 2025 | G49: Designed by Thom Hartle | J49: From their website: "ARK Funds seek to offer access to disruptive innovation and transformational companies." | Z49: =Z52 -> 100% of the stocks in the ETF are higher today
Z51: =ARKW!B103 -> 1 | AA51: of the stocks in the ETF are higher today
Z52: =TEXT(Display!Z51,"0%")&" "&Display!AA51 -> 100% of the stocks in the ETF are higher today

Sheet ARKW (hidden)
A1: =IF(Symbols!A1="","",Symbols!A1) -> S.US.TSLA | B1: =IF(A1="","",IF(J1>0,1,0)) -> 1 | C1: =A1 -> S.US.TSLA | D1: =IF(A1="","",RTD("cqg.rtd", ,"ContractData",C1, "LongDescription",, "T")) -> TESLA, INC. | F1: =("$J$"&"1"&":$J$"&A103) -> $J$1:$J$48 | H1: =IF(A1="","",RTD("cqg.rtd", ,"ContractData",C1, "LastTradeToday",, "T")) ->  | I1: =IF(A1="","",RTD("cqg.rtd", ,"ContractData",C1, "NetLastTradeToday",, "T")) ->  | J1: =IF(A1="","",IFERROR(RTD("cqg.rtd", ,"ContractData",C1, "PerCentNetLastTrade",, "T")/100,"")) ->  | K1: =IF(A1="","",RTD("cqg.rtd", ,"ContractData", C1, "T_CVol",, "T")) -> 1062646 | L1: 1 | M1: =IFERROR(RANK($J1,INDIRECT(("$J$"&"1"&":$J$"&$A$103)))+COUNTIF($J$1:J1,J1)-1,"") ->  | N1: =C1 -> S.US.TSLA | O1: =IFERROR(VLOOKUP($L1,$M$1:$N$101,2,FALSE),"") ->  | P1: =IF(O1="","",RTD("cqg.rtd", ,"ContractData",O1, "LongDescription",, "T")) ->  | Q1: =IFERROR(RTD("cqg.rtd", ,"ContractData",O1, "PerCentNetLastTrade",, "T")/100,"") ->  | R1: =IFERROR("https://finance.yahoo.com/quote/"&RIGHT(O1,(LEN(O1)-5)),"") ->  | T1: =IF(Q1>=0,Q1,NA()) ->  | U1: =IFERROR(IF(Q1>=0,NA(),-1*Q1),"") ->  | W1: =IF(Q1="","",IF(Q1<0,"",IFERROR(RTD("cqg.rtd", ,"ContractData",O1, "LongDescription",, "T"),""))) ->  | Z1: =IF(W1="","",IFERROR(T1,Q1)) ->  | AA1: =MIN(J1:J101) -> 0 | AB1: =IFERROR(VLOOKUP(AA1,J1:O98,4,FALSE),"") ->  | AC1: =IF(AB1="","",VLOOKUP($AB1,$M$1:$N$101,2,FALSE)) ->  | AD1: =IF(RTD("cqg.rtd", ,"ContractData",AC1, "PerCentNetLastTrade",, "T")>0,"",IFERROR(RTD("cqg.rtd", ,"ContractData",AC1, "PerCentNetLastTrade",, "T")/100,"")) ->  | AE1: =IF(AD1>0,"",IFERROR(RTD("cqg.rtd", ,"ContractData",AC1, "LongDescription",, "T"),"")) ->  | AF1: ="" ->  | AG1: =IF(AD1>0,"",IFERROR(AD1*-1,"")) ->  | AH1: =IFERROR("https://finance.yahoo.com/quote/"&RIGHT(AC1,(LEN(AC1)-5)),"") -> 
A2: =IF(Symbols!A2="","",Symbols!A2) -> S.US.AMD | B2: =IF(A2="","",IF(J2>0,1,0)) -> 1 | C2: =A2 -> S.US.AMD | D2: =IF(A2="","",RTD("cqg.rtd", ,"ContractData",C2, "LongDescription",, "T")) -> ADV MICRO DEVICES | H2: =IF(A2="","",RTD("cqg.rtd", ,"ContractData",C2, "LastTradeToday",, "T")) ->  | I2: =IF(A2="","",RTD("cqg.rtd", ,"ContractData",C2, "NetLastTradeToday",, "T")) ->  | J2: =IF(A2="","",IFERROR(RTD("cqg.rtd", ,"ContractData",C2, "PerCentNetLastTrade",, "T")/100,"")) ->  | K2: =IF(A2="","",RTD("cqg.rtd", ,"ContractData", C2, "T_CVol",, "T")) -> 858195 | L2: =L1+1 -> 2 | M2: =IFERROR(RANK($J2,INDIRECT(("$J$"&"1"&":$J$"&$A$103)))+COUNTIF($J$1:J2,J2)-1,"") ->  | N2: =C2 -> S.US.AMD | O2: =IFERROR(VLOOKUP($L2,$M$1:$N$101,2,FALSE),"") ->  | P2: =IF(O2="","",RTD("cqg.rtd", ,"ContractData",O2, "LongDescription",, "T")) ->  | Q2: =IFERROR(RTD("cqg.rtd", ,"ContractData",O2, "PerCentNetLastTrade",, "T")/100,"") ->  | R2: =IFERROR("https://finance.yahoo.com/quote/"&RIGHT(O2,(LEN(O2)-5)),"") ->  | T2: =IF(Q2>=0,Q2,NA()) ->  | U2: =IFERROR(IF(Q2>=0,NA(),-1*Q2),"") ->  | W2: =IF(Q2="","",IF(Q2<0,"",IFERROR(RTD("cqg.rtd", ,"ContractData",O2, "LongDescription",, "T"),""))) ->  | Z2: =IF(W2="","",IFERROR(T2,Q2)) ->  | AB2: =IFERROR(AB1-1,"") ->  | AC2: =IF(AB2="","",VLOOKUP($AB2,$M$1:$N$101,2,FALSE)) ->  | AD2: =IF(RTD("cqg.rtd", ,"ContractData",AC2, "PerCentNetLastTrade",, "T")>0,"",IFERROR(RTD("cqg.rtd", ,"ContractData",AC2, "PerCentNetLastTrade",, "T")/100,"")) ->  | AE2: =IF(AD2>0,"",IFERROR(RTD("cqg.rtd", ,"ContractData",AC2, "LongDescription",, "T"),"")) ->  | AF2: ="" ->  | AG2: =IF(AD2>0,"",IFERROR(AD2*-1,"")) ->  | AH2: =IFERROR("https://finance.yahoo.com/quote/"&RIGHT(AC2,(LEN(AC2)-5)),"") -> 
A3: =IF(Symbols!A3="","",Symbols!A3) -> S.US.ARKW | B3: 1 | C3: S.US.ARKW | D3: =IF(A3="","",RTD("cqg.rtd", ,"ContractData",C3, "LongDescription",, "T")) -> ARK Next Generation Internet ETF | H3: =IF(A3="","",RTD("cqg.rtd", ,"ContractData",C3, "LastTradeToday",, "T")) ->  | I3: =IF(A3="","",RTD("cqg.rtd", ,"ContractData",C3, "NetLastTradeToday",, "T")) ->  | J3: =IF(A3="","",IFERROR(RTD("cqg.rtd", ,"ContractData",C3, "PerCentNetLastTrade",, "T")/100,"")) ->  | K3: =IF(A3="","",RTD("cqg.rtd", ,"ContractData", C3, "T_CVol",, "T")) -> 658 | L3: =L2+1 -> 3 | M3: =IFERROR(RANK($J3,INDIRECT(("$J$"&"1"&":$J$"&$A$103)))+COUNTIF($J$1:J3,J3)-1,"") ->  | N3: S.US.ARKW | P3: =IF(O3="","",RTD("cqg.rtd", ,"ContractData",O3, "LongDescription",, "T")) ->  | Q3: =IFERROR(RTD("cqg.rtd", ,"ContractData",O3, "PerCentNetLastTrade",, "T")/100,"") ->  | W3: =IF(Q3="","",IF(Q3<0,"",IFERROR(RTD("cqg.rtd", ,"ContractData",O3, "LongDescription",, "T"),""))) ->  | AB3: =IFERROR(AB2-1,"") ->  | AD3: =IF(RTD("cqg.rtd", ,"ContractData",AC3, "PerCentNetLastTrade",, "T")>0,"",IFERROR(RTD("cqg.rtd", ,"ContractData",AC3, "PerCentNetLastTrade",, "T")/100,"")) ->  | AE3: =IF(AD3>0,"",IFERROR(RTD("cqg.rtd", ,"ContractData",AC3, "LongDescription",, "T"),"")) ->  | AF3: ="" -> 
A4: =IF(Symbols!A4="","",Symbols!A4) -> S.US.ROKU | B4: 1 | C4: S.US.ROKU | D4: =IF(A4="","",RTD("cqg.rtd", ,"ContractData",C4, "LongDescription",, "T")) -> ROKU, INC. A CMN | H4: =IF(A4="","",RTD("cqg.rtd", ,"ContractData",C4, "LastTradeToday",, "T")) ->  | I4: =IF(A4="","",RTD("cqg.rtd", ,"ContractData",C4, "NetLastTradeToday",, "T")) ->  | J4: =IF(A4="","",IFERROR(RTD("cqg.rtd", ,"ContractData",C4, "PerCentNetLastTrade",, "T")/100,"")) ->  | K4: =IF(A4="","",RTD("cqg.rtd", ,"ContractData", C4, "T_CVol",, "T")) -> 7703 | L4: 4 | M4: =IFERROR(RANK($J4,INDIRECT(("$J$"&"1"&":$J$"&$A$103)))+COUNTIF($J$1:J4,J4)-1,"") ->  | N4: S.US.ROKU | P4: =IF(O4="","",RTD("cqg.rtd", ,"ContractData",O4, "LongDescription",, "T")) ->  | Q4: =IFERROR(RTD("cqg.rtd", ,"ContractData",O4, "PerCentNetLastTrade",, "T")/100,"") ->  | W4: =IF(Q4="","",IF(Q4<0,"",IFERROR(RTD("cqg.rtd", ,"ContractData",O4, "LongDescription",, "T"),""))) ->  | AD4: =IF(RTD("cqg.rtd", ,"ContractData",AC4, "PerCentNetLastTrade",, "T")>0,"",IFERROR(RTD("cqg.rtd", ,"ContractData",AC4, "PerCentNetLastTrade",, "T")/100,"")) ->  | AE4: =IF(AD4>0,"",IFERROR(RTD("cqg.rtd", ,"ContractData",AC4, "LongDescription",, "T"),"")) ->  | AF4: ="" -> 
A5: =IF(Symbols!A5="","",Symbols!A5) -> S.US.COIN | B5: 1 | C5: S.US.COIN | D5: =IF(A5="","",RTD("cqg.rtd", ,"ContractData",C5, "LongDescription",, "T")) -> COINBASE GLB CL A CM | H5: =IF(A5="","",RTD("cqg.rtd", ,"ContractData",C5, "LastTradeToday",, "T")) ->  | I5: =IF(A5="","",RTD("cqg.rtd", ,"ContractData",C5, "NetLastTradeToday",, "T")) ->  | J5: =IF(A5="","",IFERROR(RTD("cqg.rtd", ,"ContractData",C5, "PerCentNetLastTrade",, "T")/100,"")) ->  | K5: =IF(A5="","",RTD("cqg.rtd", ,"ContractData", C5, "T_CVol",, "T")) -> 214252 | L5: 5 | M5: =IFERROR(RANK($J5,INDIRECT(("$J$"&"1"&":$J$"&$A$103)))+COUNTIF($J$1:J5,J5)-1,"") ->  | N5: S.US.COIN | P5: =IF(O5="","",RTD("cqg.rtd", ,"ContractData",O5, "LongDescription",, "T")) ->  | Q5: =IFERROR(RTD("cqg.rtd", ,"ContractData",O5, "PerCentNetLastTrade",, "T")/100,"") ->  | W5: =IF(Q5="","",IF(Q5<0,"",IFERROR(RTD("cqg.rtd", ,"ContractData",O5, "LongDescription",, "T"),""))) ->  | AD5: =IF(RTD("cqg.rtd", ,"ContractData",AC5, "PerCentNetLastTrade",, "T")>0,"",IFERROR(RTD("cqg.rtd", ,"ContractData",AC5, "PerCentNetLastTrade",, "T")/100,"")) ->  | AE5: =IF(AD5>0,"",IFERROR(RTD("cqg.rtd", ,"ContractData",AC5, "LongDescription",, "T"),"")) ->  | AF5: ="" -> 
A6: =IF(Symbols!A6="","",Symbols!A6) -> S.US.SHOP | B6: 1 | C6: S.US.SHOP | D6: =IF(A6="","",RTD("cqg.rtd", ,"ContractData",C6, "LongDescription",, "T")) -> Shopify Inc. | H6: =IF(A6="","",RTD("cqg.rtd", ,"ContractData",C6, "LastTradeToday",, "T")) ->  | I6: =IF(A6="","",RTD("cqg.rtd", ,"ContractData",C6, "NetLastTradeToday",, "T")) ->  | J6: =IF(A6="","",IFERROR(RTD("cqg.rtd", ,"ContractData",C6, "PerCentNetLastTrade",, "T")/100,"")) ->  | K6: =IF(A6="","",RTD("cqg.rtd", ,"ContractData", C6, "T_CVol",, "T")) -> 82697 | L6: 6 | M6: =IFERROR(RANK($J6,INDIRECT(("$J$"&"1"&":$J$"&$A$103)))+COUNTIF($J$1:J6,J6)-1,"") ->  | N6: S.US.SHOP | P6: =IF(O6="","",RTD("cqg.rtd", ,"ContractData",O6, "LongDescription",, "T")) ->  | Q6: =IFERROR(RTD("cqg.rtd", ,"ContractData",O6, "PerCentNetLastTrade",, "T")/100,"") ->  | W6: =IF(Q6="","",IF(Q6<0,"",IFERROR(RTD("cqg.rtd", ,"ContractData",O6, "LongDescription",, "T"),""))) ->  | AD6: =IF(RTD("cqg.rtd", ,"ContractData",AC6, "PerCentNetLastTrade",, "T")>0,"",IFERROR(RTD("cqg.rtd", ,"ContractData",AC6, "PerCentNetLastTrade",, "T")/100,"")) ->  | AE6: =IF(AD6>0,"",IFERROR(RTD("cqg.rtd", ,"ContractData",AC6, "LongDescription",, "T"),"")) ->  | AF6: ="" -> 
A7: =IF(Symbols!A7="","",Symbols!A7) -> S.US.HOOD | B7: 1 | C7: S.US.HOOD | D7: =IF(A7="","",RTD("cqg.rtd", ,"ContractData",C7, "LongDescription",, "T")) -> ROBINHOOD MK CL A CS | H7: =IF(A7="","",RTD("cqg.rtd", ,"ContractData",C7, "LastTradeToday",, "T")) ->  | I7: =IF(A7="","",RTD("cqg.rtd", ,"ContractData",C7, "NetLastTradeToday",, "T")) ->  | J7: =IF(A7="","",IFERROR(RTD("cqg.rtd", ,"ContractData",C7, "PerCentNetLastTrade",, "T")/100,"")) ->  | K7: =IF(A7="","",RTD("cqg.rtd", ,"ContractData", C7, "T_CVol",, "T")) -> 307298 | L7: 7 | M7: =IFERROR(RANK($J7,INDIRECT(("$J$"&"1"&":$J$"&$A$103)))+COUNTIF($J$1:J7,J7)-1,"") ->  | N7: S.US.HOOD | P7: =IF(O7="","",RTD("cqg.rtd", ,"ContractData",O7, "LongDescription",, "T")) ->  | Q7: =IFERROR(RTD("cqg.rtd", ,"ContractData",O7, "PerCentNetLastTrade",, "T")/100,"") ->  | W7: =IF(Q7="","",IF(Q7<0,"",IFERROR(RTD("cqg.rtd", ,"ContractData",O7, "LongDescription",, "T"),""))) ->  | AD7: =IF(RTD("cqg.rtd", ,"ContractData",AC7, "PerCentNetLastTrade",, "T")>0,"",IFERROR(RTD("cqg.rtd", ,"ContractData",AC7, "PerCentNetLastTrade",, "T")/100,"")) ->  | AE7: =IF(AD7>0,"",IFERROR(RTD("cqg.rtd", ,"ContractData",AC7, "LongDescription",, "T"),"")) ->  | AF7: ="" -> 
A8: =IF(Symbols!A8="","",Symbols!A8) -> S.US.PLTR | B8: 1 | C8: S.US.PLTR | D8: =IF(A8="","",RTD("cqg.rtd", ,"ContractData",C8, "LongDescription",, "T")) -> PALANTIR TECH CL A | H8: =IF(A8="","",RTD("cqg.rtd", ,"ContractData",C8, "LastTradeToday",, "T")) ->  | I8: =IF(A8="","",RTD("cqg.rtd", ,"ContractData",C8, "NetLastTradeToday",, "T")) ->  | J8: =IF(A8="","",IFERROR(RTD("cqg.rtd", ,"ContractData",C8, "PerCentNetLastTrade",, "T")/100,"")) ->  | K8: =IF(A8="","",RTD("cqg.rtd", ,"ContractData", C8, "T_CVol",, "T")) -> 707815 | L8: 8 | M8: =IFERROR(RANK($J8,INDIRECT(("$J$"&"1"&":$J$"&$A$103)))+COUNTIF($J$1:J8,J8)-1,"") ->  | N8: S.US.PLTR | P8: =IF(O8="","",RTD("cqg.rtd", ,"ContractData",O8, "LongDescription",, "T")) ->  | Q8: =IFERROR(RTD("cqg.rtd", ,"ContractData",O8, "PerCentNetLastTrade",, "T")/100,"") ->  | W8: =IF(Q8="","",IF(Q8<0,"",IFERROR(RTD("cqg.rtd", ,"ContractData",O8, "LongDescription",, "T"),""))) ->  | AD8: =IF(RTD("cqg.rtd", ,"ContractData",AC8, "PerCentNetLastTrade",, "T")>0,"",IFERROR(RTD("cqg.rtd", ,"ContractData",AC8, "PerCentNetLastTrade",, "T")/100,"")) ->  | AE8: =IF(AD8>0,"",IFERROR(RTD("cqg.rtd", ,"ContractData",AC8, "LongDescription",, "T"),"")) ->  | AF8: ="" -> 
A9: =IF(Symbols!A9="","",Symbols!A9) -> S.US.RBLX | B9: 1 | C9: S.US.RBLX | D9: =IF(A9="","",RTD("cqg.rtd", ,"ContractData",C9, "LongDescription",, "T")) -> Roblox Corp | H9: =IF(A9="","",RTD("cqg.rtd", ,"ContractData",C9, "LastTradeToday",, "T")) ->  | I9: =IF(A9="","",RTD("cqg.rtd", ,"ContractData",C9, "NetLastTradeToday",, "T")) ->  | J9: =IF(A9="","",IFERROR(RTD("cqg.rtd", ,"ContractData",C9, "PerCentNetLastTrade",, "T")/100,"")) ->  | K9: =IF(A9="","",RTD("cqg.rtd", ,"ContractData", C9, "T_CVol",, "T")) -> 17309 | L9: 9 | M9: =IFERROR(RANK($J9,INDIRECT(("$J$"&"1"&":$J$"&$A$103)))+COUNTIF($J$1:J9,J9)-1,"") ->  | N9: S.US.RBLX | P9: =IF(O9="","",RTD("cqg.rtd", ,"ContractData",O9, "LongDescription",, "T")) ->  | Q9: =IFERROR(RTD("cqg.rtd", ,"ContractData",O9, "PerCentNetLastTrade",, "T")/100,"") ->  | W9: =IF(Q9="","",IF(Q9<0,"",IFERROR(RTD("cqg.rtd", ,"ContractData",O9, "LongDescription",, "T"),""))) ->  | AD9: =IF(RTD("cqg.rtd", ,"ContractData",AC9, "PerCentNetLastTrade",, "T")>0,"",IFERROR(RTD("cqg.rtd", ,"ContractData",AC9, "PerCentNetLastTrade",, "T")/100,"")) ->  | AE9: =IF(AD9>0,"",IFERROR(RTD("cqg.rtd", ,"ContractData",AC9, "LongDescription",, "T"),"")) ->  | AF9: ="" -> 
A10: =IF(Symbols!A10="","",Symbols!A10) -> S.US.CRCL | B10: 1 | C10: S.US.CRCL | D10: =IF(A10="","",RTD("cqg.rtd", ,"ContractData",C10, "LongDescription",, "T")) -> Circle Internet Group | H10: =IF(A10="","",RTD("cqg.rtd", ,"ContractData",C10, "LastTradeToday",, "T")) ->  | I10: =IF(A10="","",RTD("cqg.rtd", ,"ContractData",C10, "NetLastTradeToday",, "T")) ->  | J10: =IF(A10="","",IFERROR(RTD("cqg.rtd", ,"ContractData",C10, "PerCentNetLastTrade",, "T")/100,"")) ->  | K10: =IF(A10="","",RTD("cqg.rtd", ,"ContractData", C10, "T_CVol",, "T")) -> 545240 | L10: 10 | M10: =IFERROR(RANK($J10,INDIRECT(("$J$"&"1"&":$J$"&$A$103)))+COUNTIF($J$1:J10,J10)-1,"") ->  | N10: S.US.CRCL | P10: =IF(O10="","",RTD("cqg.rtd", ,"ContractData",O10, "LongDescription",, "T")) ->  | Q10: =IFERROR(RTD("cqg.rtd", ,"ContractData",O10, "PerCentNetLastTrade",, "T")/100,"") ->  | W10: =IF(Q10="","",IF(Q10<0,"",IFERROR(RTD("cqg.rtd", ,"ContractData",O10, "LongDescription",, "T"),""))) ->  | AD10: =IF(RTD("cqg.rtd", ,"ContractData",AC10, "PerCentNetLastTrade",, "T")>0,"",IFERROR(RTD("cqg.rtd", ,"ContractData",AC10, "PerCentNetLastTrade",, "T")/100,"")) ->  | AE10: =IF(AD10>0,"",IFERROR(RTD("cqg.rtd", ,"ContractData",AC10, "LongDescription",, "T"),"")) ->  | AF10: ="" -> 
A11: =IF(Symbols!A11="","",Symbols!A11) -> S.US.TSM | B11: 1 | C11: S.US.TSM | D11: =IF(A11="","",RTD("cqg.rtd", ,"ContractData",C11, "LongDescription",, "T")) -> Taiwan Semiconductor Manufacturing Co | H11: =IF(A11="","",RTD("cqg.rtd", ,"ContractData",C11, "LastTradeToday",, "T")) ->  | I11: =IF(A11="","",RTD("cqg.rtd", ,"ContractData",C11, "NetLastTradeToday",, "T")) ->  | J11: =IF(A11="","",IFERROR(RTD("cqg.rtd", ,"ContractData",C11, "PerCentNetLastTrade",, "T")/100,"")) ->  | K11: =IF(A11="","",RTD("cqg.rtd", ,"ContractData", C11, "T_CVol",, "T")) -> 146211 | L11: 11 | M11: =IFERROR(RANK($J11,INDIRECT(("$J$"&"1"&":$J$"&$A$103)))+COUNTIF($J$1:J11,J11)-1,"") ->  | N11: S.US.TSM | P11: =IF(O11="","",RTD("cqg.rtd", ,"ContractData",O11, "LongDescription",, "T")) ->  | Q11: =IFERROR(RTD("cqg.rtd", ,"ContractData",O11, "PerCentNetLastTrade",, "T")/100,"") ->  | W11: =IF(Q11="","",IF(Q11<0,"",IFERROR(RTD("cqg.rtd", ,"ContractData",O11, "LongDescription",, "T"),""))) ->  | AD11: =IF(RTD("cqg.rtd", ,"ContractData",AC11, "PerCentNetLastTrade",, "T")>0,"",IFERROR(RTD("cqg.rtd", ,"ContractData",AC11, "PerCentNetLastTrade",, "T")/100,"")) ->  | AE11: =IF(AD11>0,"",IFERROR(RTD("cqg.rtd", ,"ContractData",AC11, "LongDescription",, "T"),"")) ->  | AF11: ="" -> 
A12: =IF(Symbols!A12="","",Symbols!A12) -> S.US.BMNR | B12: 1 | C12: S.US.BMNR | D12: =IF(A12="","",RTD("cqg.rtd", ,"ContractData",C12, "LongDescription",, "T")) -> BitMine Immersion Technologies Inc. | H12: =IF(A12="","",RTD("cqg.rtd", ,"ContractData",C12, "LastTradeToday",, "T")) ->  | I12: =IF(A12="","",RTD("cqg.rtd", ,"ContractData",C12, "NetLastTradeToday",, "T")) ->  | J12: =IF(A12="","",IFERROR(RTD("cqg.rtd", ,"ContractData",C12, "PerCentNetLastTrade",, "T")/100,"")) ->  | K12: =IF(A12="","",RTD("cqg.rtd", ,"ContractData", C12, "T_CVol",, "T")) -> 1032231 | L12: 12 | M12: =IFERROR(RANK($J12,INDIRECT(("$J$"&"1"&":$J$"&$A$103)))+COUNTIF($J$1:J12,J12)-1,"") ->  | N12: S.US.BMNR | P12: =IF(O12="","",RTD("cqg.rtd", ,"ContractData",O12, "LongDescription",, "T")) ->  | Q12: =IFERROR(RTD("cqg.rtd", ,"ContractData",O12, "PerCentNetLastTrade",, "T")/100,"") ->  | W12: =IF(Q12="","",IF(Q12<0,"",IFERROR(RTD("cqg.rtd", ,"ContractData",O12, "LongDescription",, "T"),""))) ->  | AD12: =IF(RTD("cqg.rtd", ,"ContractData",AC12, "PerCentNetLastTrade",, "T")>0,"",IFERROR(RTD("cqg.rtd", ,"ContractData",AC12, "PerCentNetLastTrade",, "T")/100,"")) ->  | AE12: =IF(AD12>0,"",IFERROR(RTD("cqg.rtd", ,"ContractData",AC12, "LongDescription",, "T"),"")) ->  | AF12: ="" -> 
A13: =IF(Symbols!A13="","",Symbols!A13) -> S.US.META | B13: 1 | C13: S.US.META | D13: =IF(A13="","",RTD("cqg.rtd", ,"ContractData",C13, "LongDescription",, "T")) -> Meta Platforms, Inc. | H13: =IF(A13="","",RTD("cqg.rtd", ,"ContractData",C13, "LastTradeToday",, "T")) ->  | I13: =IF(A13="","",RTD("cqg.rtd", ,"ContractData",C13, "NetLastTradeToday",, "T")) ->  | J13: =IF(A13="","",IFERROR(RTD("cqg.rtd", ,"ContractData",C13, "PerCentNetLastTrade",, "T")/100,"")) ->  | K13: =IF(A13="","",RTD("cqg.rtd", ,"ContractData", C13, "T_CVol",, "T")) -> 286894 | L13: 13 | M13: =IFERROR(RANK($J13,INDIRECT(("$J$"&"1"&":$J$"&$A$103)))+COUNTIF($J$1:J13,J13)-1,"") ->  | N13: S.US.META | P13: =IF(O13="","",RTD("cqg.rtd", ,"ContractData",O13, "LongDescription",, "T")) ->  | Q13: =IFERROR(RTD("cqg.rtd", ,"ContractData",O13, "PerCentNetLastTrade",, "T")/100,"") ->  | W13: =IF(Q13="","",IF(Q13<0,"",IFERROR(RTD("cqg.rtd", ,"ContractData",O13, "LongDescription",, "T"),""))) ->  | AD13: =IF(RTD("cqg.rtd", ,"ContractData",AC13, "PerCentNetLastTrade",, "T")>0,"",IFERROR(RTD("cqg.rtd", ,"ContractData",AC13, "PerCentNetLastTrade",, "T")/100,"")) ->  | AE13: =IF(AD13>0,"",IFERROR(RTD("cqg.rtd", ,"ContractData",AC13, "LongDescription",, "T"),"")) ->  | AF13: ="" -> 
A14: =IF(Symbols!A14="","",Symbols!A14) -> S.US.GOOG | B14: 1 | C14: S.US.GOOG | D14: =IF(A14="","",RTD("cqg.rtd", ,"ContractData",C14, "LongDescription",, "T")) -> ALPHABET CL C CAP | H14: =IF(A14="","",RTD("cqg.rtd", ,"ContractData",C14, "LastTradeToday",, "T")) ->  | I14: =IF(A14="","",RTD("cqg.rtd", ,"ContractData",C14, "NetLastTradeToday",, "T")) ->  | J14: =IF(A14="","",IFERROR(RTD("cqg.rtd", ,"ContractData",C14, "PerCentNetLastTrade",, "T")/100,"")) ->  | K14: =IF(A14="","",RTD("cqg.rtd", ,"ContractData", C14, "T_CVol",, "T")) -> 599197 | L14: 14 | M14: =IFERROR(RANK($J14,INDIRECT(("$J$"&"1"&":$J$"&$A$103)))+COUNTIF($J$1:J14,J14)-1,"") ->  | N14: S.US.GOOG | P14: =IF(O14="","",RTD("cqg.rtd", ,"ContractData",O14, "LongDescription",, "T")) ->  | Q14: =IFERROR(RTD("cqg.rtd", ,"ContractData",O14, "PerCentNetLastTrade",, "T")/100,"") ->  | W14: =IF(Q14="","",IF(Q14<0,"",IFERROR(RTD("cqg.rtd", ,"ContractData",O14, "LongDescription",, "T"),""))) ->  | AD14: =IF(RTD("cqg.rtd", ,"ContractData",AC14, "PerCentNetLastTrade",, "T")>0,"",IFERROR(RTD("cqg.rtd", ,"ContractData",AC14, "PerCentNetLastTrade",, "T")/100,"")) ->  | AE14: =IF(AD14>0,"",IFERROR(RTD("cqg.rtd", ,"ContractData",AC14, "LongDescription",, "T"),"")) ->  | AF14: ="" -> 
A15: =IF(Symbols!A15="","",Symbols!A15) -> S.US.CRWD | B15: 1 | C15: S.US.CRWD | D15: =IF(A15="","",RTD("cqg.rtd", ,"ContractData",C15, "LongDescription",, "T")) -> CROWDSTRIKE HLD CM A | H15: =IF(A15="","",RTD("cqg.rtd", ,"ContractData",C15, "LastTradeToday",, "T")) ->  | I15: =IF(A15="","",RTD("cqg.rtd", ,"ContractData",C15, "NetLastTradeToday",, "T")) ->  | J15: =IF(A15="","",IFERROR(RTD("cqg.rtd", ,"ContractData",C15, "PerCentNetLastTrade",, "T")/100,"")) ->  | K15: =IF(A15="","",RTD("cqg.rtd", ,"ContractData", C15, "T_CVol",, "T")) -> 8552 | L15: 15 | M15: =IFERROR(RANK($J15,INDIRECT(("$J$"&"1"&":$J$"&$A$103)))+COUNTIF($J$1:J15,J15)-1,"") ->  | N15: S.US.CRWD | P15: =IF(O15="","",RTD("cqg.rtd", ,"ContractData",O15, "LongDescription",, "T")) ->  | Q15: =IFERROR(RTD("cqg.rtd", ,"ContractData",O15, "PerCentNetLastTrade",, "T")/100,"") ->  | W15: =IF(Q15="","",IF(Q15<0,"",IFERROR(RTD("cqg.rtd", ,"ContractData",O15, "LongDescription",, "T"),""))) ->  | AD15: =IF(RTD("cqg.rtd", ,"ContractData",AC15, "PerCentNetLastTrade",, "T")>0,"",IFERROR(RTD("cqg.rtd", ,"ContractData",AC15, "PerCentNetLastTrade",, "T")/100,"")) ->  | AE15: =IF(AD15>0,"",IFERROR(RTD("cqg.rtd", ,"ContractData",AC15, "LongDescription",, "T"),"")) ->  | AF15: ="" -> 
A16: =IF(Symbols!A16="","",Symbols!A16) -> S.US.XYZ | B16: 1 | C16: S.US.XYZ | D16: =IF(A16="","",RTD("cqg.rtd", ,"ContractData",C16, "LongDescription",, "T")) -> Square, Inc | H16: =IF(A16="","",RTD("cqg.rtd", ,"ContractData",C16, "LastTradeToday",, "T")) ->  | I16: =IF(A16="","",RTD("cqg.rtd", ,"ContractData",C16, "NetLastTradeToday",, "T")) ->  | J16: =IF(A16="","",IFERROR(RTD("cqg.rtd", ,"ContractData",C16, "PerCentNetLastTrade",, "T")/100,"")) ->  | K16: =IF(A16="","",RTD("cqg.rtd", ,"ContractData", C16, "T_CVol",, "T")) -> 38614 | L16: 16 | M16: =IFERROR(RANK($J16,INDIRECT(("$J$"&"1"&":$J$"&$A$103)))+COUNTIF($J$1:J16,J16)-1,"") ->  | N16: S.US.XYZ
A17: =IF(Symbols!A17="","",Symbols!A17) -> S.US.GTLB | B17: 1 | C17: S.US.GTLB | D17: =IF(A17="","",RTD("cqg.rtd", ,"ContractData",C17, "LongDescription",, "T")) -> GITLAB INC. | H17: =IF(A17="","",RTD("cqg.rtd", ,"ContractData",C17, "LastTradeToday",, "T")) ->  | I17: =IF(A17="","",RTD("cqg.rtd", ,"ContractData",C17, "NetLastTradeToday",, "T")) ->  | J17: =IF(A17="","",IFERROR(RTD("cqg.rtd", ,"ContractData",C17, "PerCentNetLastTrade",, "T")/100,"")) ->  | K17: =IF(A17="","",RTD("cqg.rtd", ,"ContractData", C17, "T_CVol",, "T")) -> 2175 | L17: 17 | M17: =IFERROR(RANK($J17,INDIRECT(("$J$"&"1"&":$J$"&$A$103)))+COUNTIF($J$1:J17,J17)-1,"") ->  | N17: S.US.GTLB
A18: =IF(Symbols!A18="","",Symbols!A18) -> S.US.AMZN | B18: 1 | C18: S.US.AMZN | D18: =IF(A18="","",RTD("cqg.rtd", ,"ContractData",C18, "LongDescription",, "T")) -> Amazon.com Inc | H18: =IF(A18="","",RTD("cqg.rtd", ,"ContractData",C18, "LastTradeToday",, "T")) ->  | I18: =IF(A18="","",RTD("cqg.rtd", ,"ContractData",C18, "NetLastTradeToday",, "T")) ->  | J18: =IF(A18="","",IFERROR(RTD("cqg.rtd", ,"ContractData",C18, "PerCentNetLastTrade",, "T")/100,"")) ->  | K18: =IF(A18="","",RTD("cqg.rtd", ,"ContractData", C18, "T_CVol",, "T")) -> 482352 | L18: 18 | M18: =IFERROR(RANK($J18,INDIRECT(("$J$"&"1"&":$J$"&$A$103)))+COUNTIF($J$1:J18,J18)-1,"") ->  | N18: S.US.AMZN
A19: =IF(Symbols!A19="","",Symbols!A19) -> S.US.NET | B19: 1 | C19: S.US.NET | D19: =IF(A19="","",RTD("cqg.rtd", ,"ContractData",C19, "LongDescription",, "T")) -> Cloudflare, Inc. | H19: =IF(A19="","",RTD("cqg.rtd", ,"ContractData",C19, "LastTradeToday",, "T")) ->  | I19: =IF(A19="","",RTD("cqg.rtd", ,"ContractData",C19, "NetLastTradeToday",, "T")) ->  | J19: =IF(A19="","",IFERROR(RTD("cqg.rtd", ,"ContractData",C19, "PerCentNetLastTrade",, "T")/100,"")) ->  | K19: =IF(A19="","",RTD("cqg.rtd", ,"ContractData", C19, "T_CVol",, "T")) -> 20447 | L19: 19 | M19: =IFERROR(RANK($J19,INDIRECT(("$J$"&"1"&":$J$"&$A$103)))+COUNTIF($J$1:J19,J19)-1,"") ->  | N19: S.US.NET
A20: =IF(Symbols!A20="","",Symbols!A20) -> S.US.DDOG | B20: 1 | C20: S.US.DDOG | D20: =IF(A20="","",RTD("cqg.rtd", ,"ContractData",C20, "LongDescription",, "T")) -> DATADOG INC.L A CM | H20: =IF(A20="","",RTD("cqg.rtd", ,"ContractData",C20, "LastTradeToday",, "T")) ->  | I20: =IF(A20="","",RTD("cqg.rtd", ,"ContractData",C20, "NetLastTradeToday",, "T")) ->  | J20: =IF(A20="","",IFERROR(RTD("cqg.rtd", ,"ContractData",C20, "PerCentNetLastTrade",, "T")/100,"")) ->  | K20: =IF(A20="","",RTD("cqg.rtd", ,"ContractData", C20, "T_CVol",, "T")) -> 19559 | L20: 20 | M20: =IFERROR(RANK($J20,INDIRECT(("$J$"&"1"&":$J$"&$A$103)))+COUNTIF($J$1:J20,J20)-1,"") ->  | N20: S.US.DDOG
A21: =IF(Symbols!A21="","",Symbols!A21) -> S.US.CRWV | B21: 1 | C21: S.US.CRWV | D21: =IF(A21="","",RTD("cqg.rtd", ,"ContractData",C21, "LongDescription",, "T")) -> COREWEAVE CL A CS | H21: =IF(A21="","",RTD("cqg.rtd", ,"ContractData",C21, "LastTradeToday",, "T")) ->  | I21: =IF(A21="","",RTD("cqg.rtd", ,"ContractData",C21, "NetLastTradeToday",, "T")) ->  | J21: =IF(A21="","",IFERROR(RTD("cqg.rtd", ,"ContractData",C21, "PerCentNetLastTrade",, "T")/100,"")) ->  | K21: =IF(A21="","",RTD("cqg.rtd", ,"ContractData", C21, "T_CVol",, "T")) -> 969257 | L21: 21 | M21: =IFERROR(RANK($J21,INDIRECT(("$J$"&"1"&":$J$"&$A$103)))+COUNTIF($J$1:J21,J21)-1,"") ->  | N21: S.US.CRWV
A22: =IF(Symbols!A22="","",Symbols!A22) -> S.US.U | B22: 1 | C22: S.US.U | D22: =IF(A22="","",RTD("cqg.rtd", ,"ContractData",C22, "LongDescription",, "T")) -> Unity Software Inc. | H22: =IF(A22="","",RTD("cqg.rtd", ,"ContractData",C22, "LastTradeToday",, "T")) ->  | I22: =IF(A22="","",RTD("cqg.rtd", ,"ContractData",C22, "NetLastTradeToday",, "T")) ->  | J22: =IF(A22="","",IFERROR(RTD("cqg.rtd", ,"ContractData",C22, "PerCentNetLastTrade",, "T")/100,"")) ->  | K22: =IF(A22="","",RTD("cqg.rtd", ,"ContractData", C22, "T_CVol",, "T")) -> 63810 | L22: 22 | M22: =IFERROR(RANK($J22,INDIRECT(("$J$"&"1"&":$J$"&$A$103)))+COUNTIF($J$1:J22,J22)-1,"") ->  | N22: S.US.U
A23: =IF(Symbols!A23="","",Symbols!A23) -> S.US.DKNG | B23: 1 | C23: S.US.DKNG | D23: =IF(A23="","",RTD("cqg.rtd", ,"ContractData",C23, "LongDescription",, "T")) -> DRAFTKINGS INC. CL A | H23: =IF(A23="","",RTD("cqg.rtd", ,"ContractData",C23, "LastTradeToday",, "T")) ->  | I23: =IF(A23="","",RTD("cqg.rtd", ,"ContractData",C23, "NetLastTradeToday",, "T")) ->  | J23: =IF(A23="","",IFERROR(RTD("cqg.rtd", ,"ContractData",C23, "PerCentNetLastTrade",, "T")/100,"")) ->  | K23: =IF(A23="","",RTD("cqg.rtd", ,"ContractData", C23, "T_CVol",, "T")) -> 7203 | L23: 23 | M23: =IFERROR(RANK($J23,INDIRECT(("$J$"&"1"&":$J$"&$A$103)))+COUNTIF($J$1:J23,J23)-1,"") ->  | N23: S.US.DKNG
A24: =IF(Symbols!A24="","",Symbols!A24) -> S.US.NVDA | B24: 1 | C24: S.US.NVDA | D24: =IF(A24="","",RTD("cqg.rtd", ,"ContractData",C24, "LongDescription",, "T")) -> NVIDIA CORPORATION | H24: =IF(A24="","",RTD("cqg.rtd", ,"ContractData",C24, "LastTradeToday",, "T")) ->  | I24: =IF(A24="","",RTD("cqg.rtd", ,"ContractData",C24, "NetLastTradeToday",, "T")) ->  | J24: =IF(A24="","",IFERROR(RTD("cqg.rtd", ,"ContractData",C24, "PerCentNetLastTrade",, "T")/100,"")) ->  | K24: =IF(A24="","",RTD("cqg.rtd", ,"ContractData", C24, "T_CVol",, "T")) -> 7280443 | L24: 24 | M24: =IFERROR(RANK($J24,INDIRECT(("$J$"&"1"&":$J$"&$A$103)))+COUNTIF($J$1:J24,J24)-1,"") ->  | N24: S.US.NVDA
A25: =IF(Symbols!A25="","",Symbols!A25) -> S.US.BLSH | B25: 1 | C25: S.US.BLSH | D25: =IF(A25="","",RTD("cqg.rtd", ,"ContractData",C25, "LongDescription",, "T")) -> Bullish | H25: =IF(A25="","",RTD("cqg.rtd", ,"ContractData",C25, "LastTradeToday",, "T")) ->  | I25: =IF(A25="","",RTD("cqg.rtd", ,"ContractData",C25, "NetLastTradeToday",, "T")) ->  | J25: =IF(A25="","",IFERROR(RTD("cqg.rtd", ,"ContractData",C25, "PerCentNetLastTrade",, "T")/100,"")) ->  | K25: =IF(A25="","",RTD("cqg.rtd", ,"ContractData", C25, "T_CVol",, "T")) -> 71206 | L25: 25 | M25: =IFERROR(RANK($J25,INDIRECT(("$J$"&"1"&":$J$"&$A$103)))+COUNTIF($J$1:J25,J25)-1,"") ->  | N25: S.US.BLSH
A26: =IF(Symbols!A26="","",Symbols!A26) -> S.US.DASH | B26: 1 | C26: S.US.DASH | D26: =IF(A26="","",RTD("cqg.rtd", ,"ContractData",C26, "LongDescription",, "T")) -> DOORDASH, INC. CL A | H26: =IF(A26="","",RTD("cqg.rtd", ,"ContractData",C26, "LastTradeToday",, "T")) ->  | I26: =IF(A26="","",RTD("cqg.rtd", ,"ContractData",C26, "NetLastTradeToday",, "T")) ->  | J26: =IF(A26="","",IFERROR(RTD("cqg.rtd", ,"ContractData",C26, "PerCentNetLastTrade",, "T")/100,"")) ->  | K26: =IF(A26="","",RTD("cqg.rtd", ,"ContractData", C26, "T_CVol",, "T")) -> 9061 | L26: 26 | M26: =IFERROR(RANK($J26,INDIRECT(("$J$"&"1"&":$J$"&$A$103)))+COUNTIF($J$1:J26,J26)-1,"") ->  | N26: S.US.DASH
A27: =IF(Symbols!A27="","",Symbols!A27) -> S.US.RBRK | B27: 1 | C27: S.US.RBRK | D27: =IF(A27="","",RTD("cqg.rtd", ,"ContractData",C27, "LongDescription",, "T")) -> Rubrik, Inc. | H27: =IF(A27="","",RTD("cqg.rtd", ,"ContractData",C27, "LastTradeToday",, "T")) ->  | I27: =IF(A27="","",RTD("cqg.rtd", ,"ContractData",C27, "NetLastTradeToday",, "T")) ->  | J27: =IF(A27="","",IFERROR(RTD("cqg.rtd", ,"ContractData",C27, "PerCentNetLastTrade",, "T")/100,"")) ->  | K27: =IF(A27="","",RTD("cqg.rtd", ,"ContractData", C27, "T_CVol",, "T")) -> 1588 | L27: 27 | M27: =IFERROR(RANK($J27,INDIRECT(("$J$"&"1"&":$J$"&$A$103)))+COUNTIF($J$1:J27,J27)-1,"") ->  | N27: S.US.RBRK
A28: =IF(Symbols!A28="","",Symbols!A28) -> S.US.SPOT | B28: 1 | C28: S.US.SPOT | D28: =IF(A28="","",RTD("cqg.rtd", ,"ContractData",C28, "LongDescription",, "T")) -> Spotify Technology S.A. | H28: =IF(A28="","",RTD("cqg.rtd", ,"ContractData",C28, "LastTradeToday",, "T")) ->  | I28: =IF(A28="","",RTD("cqg.rtd", ,"ContractData",C28, "NetLastTradeToday",, "T")) ->  | J28: =IF(A28="","",IFERROR(RTD("cqg.rtd", ,"ContractData",C28, "PerCentNetLastTrade",, "T")/100,"")) ->  | K28: =IF(A28="","",RTD("cqg.rtd", ,"ContractData", C28, "T_CVol",, "T")) -> 1873 | L28: 28 | M28: =IFERROR(RANK($J28,INDIRECT(("$J$"&"1"&":$J$"&$A$103)))+COUNTIF($J$1:J28,J28)-1,"") ->  | N28: S.US.SPOT
A29: =IF(Symbols!A29="","",Symbols!A29) -> S.US.PINS | B29: 1 | C29: S.US.PINS | D29: =IF(A29="","",RTD("cqg.rtd", ,"ContractData",C29, "LongDescription",, "T")) -> Pinterest, Inc. | H29: =IF(A29="","",RTD("cqg.rtd", ,"ContractData",C29, "LastTradeToday",, "T")) ->  | I29: =IF(A29="","",RTD("cqg.rtd", ,"ContractData",C29, "NetLastTradeToday",, "T")) ->  | J29: =IF(A29="","",IFERROR(RTD("cqg.rtd", ,"ContractData",C29, "PerCentNetLastTrade",, "T")/100,"")) ->  | K29: =IF(A29="","",RTD("cqg.rtd", ,"ContractData", C29, "T_CVol",, "T")) -> 5864 | L29: 29 | M29: =IFERROR(RANK($J29,INDIRECT(("$J$"&"1"&":$J$"&$A$103)))+COUNTIF($J$1:J29,J29)-1,"") ->  | N29: S.US.PINS
A30: =IF(Symbols!A30="","",Symbols!A30) -> S.US.BIDU | B30: 1 | C30: S.US.BIDU | D30: =IF(A30="","",RTD("cqg.rtd", ,"ContractData",C30, "LongDescription",, "T")) -> BAIDU, INC | H30: =IF(A30="","",RTD("cqg.rtd", ,"ContractData",C30, "LastTradeToday",, "T")) ->  | I30: =IF(A30="","",RTD("cqg.rtd", ,"ContractData",C30, "NetLastTradeToday",, "T")) ->  | J30: =IF(A30="","",IFERROR(RTD("cqg.rtd", ,"ContractData",C30, "PerCentNetLastTrade",, "T")/100,"")) ->  | K30: =IF(A30="","",RTD("cqg.rtd", ,"ContractData", C30, "T_CVol",, "T")) -> 31864 | L30: 30 | M30: =IFERROR(RANK($J30,INDIRECT(("$J$"&"1"&":$J$"&$A$103)))+COUNTIF($J$1:J30,J30)-1,"") ->  | N30: S.US.BIDU
A31: =IF(Symbols!A31="","",Symbols!A31) -> S.US.PSTG | B31: 1 | C31: S.US.PSTG | D31: =IF(A31="","",RTD("cqg.rtd", ,"ContractData",C31, "LongDescription",, "T")) -> Pure Storage, Inc. | H31: =IF(A31="","",RTD("cqg.rtd", ,"ContractData",C31, "LastTradeToday",, "T")) ->  | I31: =IF(A31="","",RTD("cqg.rtd", ,"ContractData",C31, "NetLastTradeToday",, "T")) ->  | J31: =IF(A31="","",IFERROR(RTD("cqg.rtd", ,"ContractData",C31, "PerCentNetLastTrade",, "T")/100,"")) ->  | K31: =IF(A31="","",RTD("cqg.rtd", ,"ContractData", C31, "T_CVol",, "T")) -> 4361 | L31: 31 | M31: =IFERROR(RANK($J31,INDIRECT(("$J$"&"1"&":$J$"&$A$103)))+COUNTIF($J$1:J31,J31)-1,"") ->  | N31: S.US.PSTG
A32: =IF(Symbols!A32="","",Symbols!A32) -> S.US.ABNB | B32: 1 | C32: S.US.ABNB | D32: =IF(A32="","",RTD("cqg.rtd", ,"ContractData",C32, "LongDescription",, "T")) -> Airbnb, Inc. Class A | H32: =IF(A32="","",RTD("cqg.rtd", ,"ContractData",C32, "LastTradeToday",, "T")) ->  | I32: =IF(A32="","",RTD("cqg.rtd", ,"ContractData",C32, "NetLastTradeToday",, "T")) ->  | J32: =IF(A32="","",IFERROR(RTD("cqg.rtd", ,"ContractData",C32, "PerCentNetLastTrade",, "T")/100,"")) ->  | K32: =IF(A32="","",RTD("cqg.rtd", ,"ContractData", C32, "T_CVol",, "T")) -> 10905 | L32: 32 | M32: =IFERROR(RANK($J32,INDIRECT(("$J$"&"1"&":$J$"&$A$103)))+COUNTIF($J$1:J32,J32)-1,"") ->  | N32: S.US.ABNB
A33: =IF(Symbols!A33="","",Symbols!A33) -> S.US.MELI | B33: 1 | C33: S.US.MELI | D33: =IF(A33="","",RTD("cqg.rtd", ,"ContractData",C33, "LongDescription",, "T")) -> MERCADOLIBRE, INC. | H33: =IF(A33="","",RTD("cqg.rtd", ,"ContractData",C33, "LastTradeToday",, "T")) ->  | I33: =IF(A33="","",RTD("cqg.rtd", ,"ContractData",C33, "NetLastTradeToday",, "T")) ->  | J33: =IF(A33="","",IFERROR(RTD("cqg.rtd", ,"ContractData",C33, "PerCentNetLastTrade",, "T")/100,"")) ->  | K33: =IF(A33="","",RTD("cqg.rtd", ,"ContractData", C33, "T_CVol",, "T")) -> 736 | L33: 33 | M33: =IFERROR(RANK($J33,INDIRECT(("$J$"&"1"&":$J$"&$A$103)))+COUNTIF($J$1:J33,J33)-1,"") ->  | N33: S.US.MELI
A34: =IF(Symbols!A34="","",Symbols!A34) -> S.US.TTD | B34: 1 | C34: S.US.TTD | D34: =IF(A34="","",RTD("cqg.rtd", ,"ContractData",C34, "LongDescription",, "T")) -> THE TRADE DESK CL A | H34: =IF(A34="","",RTD("cqg.rtd", ,"ContractData",C34, "LastTradeToday",, "T")) ->  | I34: =IF(A34="","",RTD("cqg.rtd", ,"ContractData",C34, "NetLastTradeToday",, "T")) ->  | J34: =IF(A34="","",IFERROR(RTD("cqg.rtd", ,"ContractData",C34, "PerCentNetLastTrade",, "T")/100,"")) ->  | K34: =IF(A34="","",RTD("cqg.rtd", ,"ContractData", C34, "T_CVol",, "T")) -> 45237 | L34: 34 | M34: =IFERROR(RANK($J34,INDIRECT(("$J$"&"1"&":$J$"&$A$103)))+COUNTIF($J$1:J34,J34)-1,"") ->  | N34: S.US.TTD
A35: =IF(Symbols!A35="","",Symbols!A35) -> S.US.GENI | B35: 1 | C35: S.US.GENI | D35: =IF(A35="","",RTD("cqg.rtd", ,"ContractData",C35, "LongDescription",, "T")) -> Genius Sports LTD | H35: =IF(A35="","",RTD("cqg.rtd", ,"ContractData",C35, "LastTradeToday",, "T")) ->  | I35: =IF(A35="","",RTD("cqg.rtd", ,"ContractData",C35, "NetLastTradeToday",, "T")) ->  | J35: =IF(A35="","",IFERROR(RTD("cqg.rtd", ,"ContractData",C35, "PerCentNetLastTrade",, "T")/100,"")) ->  | K35: =IF(A35="","",RTD("cqg.rtd", ,"ContractData", C35, "T_CVol",, "T")) -> 4087 | L35: 35 | M35: =IFERROR(RANK($J35,INDIRECT(("$J$"&"1"&":$J$"&$A$103)))+COUNTIF($J$1:J35,J35)-1,"") ->  | N35: S.US.GENI
A36: =IF(Symbols!A36="","",Symbols!A36) -> S.US.PD | B36: 1 | C36: S.US.PD | D36: =IF(A36="","",RTD("cqg.rtd", ,"ContractData",C36, "LongDescription",, "T")) -> PagerDuty, Inc. | H36: =IF(A36="","",RTD("cqg.rtd", ,"ContractData",C36, "LastTradeToday",, "T")) ->  | I36: =IF(A36="","",RTD("cqg.rtd", ,"ContractData",C36, "NetLastTradeToday",, "T")) ->  | J36: =IF(A36="","",IFERROR(RTD("cqg.rtd", ,"ContractData",C36, "PerCentNetLastTrade",, "T")/100,"")) ->  | K36: =IF(A36="","",RTD("cqg.rtd", ,"ContractData", C36, "T_CVol",, "T")) -> 1205 | L36: 36 | M36: =IFERROR(RANK($J36,INDIRECT(("$J$"&"1"&":$J$"&$A$103)))+COUNTIF($J$1:J36,J36)-1,"") ->  | N36: S.US.PD
A37: =IF(Symbols!A37="","",Symbols!A37) -> S.US.TOST | B37: 1 | C37: S.US.TOST | D37: =IF(A37="","",RTD("cqg.rtd", ,"ContractData",C37, "LongDescription",, "T")) -> Toast, Inc. | H37: =IF(A37="","",RTD("cqg.rtd", ,"ContractData",C37, "LastTradeToday",, "T")) ->  | I37: =IF(A37="","",RTD("cqg.rtd", ,"ContractData",C37, "NetLastTradeToday",, "T")) ->  | J37: =IF(A37="","",IFERROR(RTD("cqg.rtd", ,"ContractData",C37, "PerCentNetLastTrade",, "T")/100,"")) ->  | K37: =IF(A37="","",RTD("cqg.rtd", ,"ContractData", C37, "T_CVol",, "T")) -> 4205 | L37: 37 | M37: =IFERROR(RANK($J37,INDIRECT(("$J$"&"1"&":$J$"&$A$103)))+COUNTIF($J$1:J37,J37)-1,"") ->  | N37: S.US.TOST
A38: =IF(Symbols!A38="","",Symbols!A38) -> S.US.QCOM | B38: 1 | C38: S.US.QCOM | D38: =IF(A38="","",RTD("cqg.rtd", ,"ContractData",C38, "LongDescription",, "T")) -> QUALCOMM Inc | H38: =IF(A38="","",RTD("cqg.rtd", ,"ContractData",C38, "LastTradeToday",, "T")) ->  | I38: =IF(A38="","",RTD("cqg.rtd", ,"ContractData",C38, "NetLastTradeToday",, "T")) ->  | J38: =IF(A38="","",IFERROR(RTD("cqg.rtd", ,"ContractData",C38, "PerCentNetLastTrade",, "T")/100,"")) ->  | K38: =IF(A38="","",RTD("cqg.rtd", ,"ContractData", C38, "T_CVol",, "T")) -> 36748 | L38: 38 | M38: =IFERROR(RANK($J38,INDIRECT(("$J$"&"1"&":$J$"&$A$103)))+COUNTIF($J$1:J38,J38)-1,"") ->  | N38: S.US.QCOM
A39: =IF(Symbols!A39="","",Symbols!A39) -> S.US.NFLX | B39: 1 | C39: S.US.NFLX | D39: =IF(A39="","",RTD("cqg.rtd", ,"ContractData",C39, "LongDescription",, "T")) -> NETFLIX, INC. | H39: =IF(A39="","",RTD("cqg.rtd", ,"ContractData",C39, "LastTradeToday",, "T")) ->  | I39: =IF(A39="","",RTD("cqg.rtd", ,"ContractData",C39, "NetLastTradeToday",, "T")) ->  | J39: =IF(A39="","",IFERROR(RTD("cqg.rtd", ,"ContractData",C39, "PerCentNetLastTrade",, "T")/100,"")) ->  | K39: =IF(A39="","",RTD("cqg.rtd", ,"ContractData", C39, "T_CVol",, "T")) -> 186243 | L39: 39 | M39: =IFERROR(RANK($J39,INDIRECT(("$J$"&"1"&":$J$"&$A$103)))+COUNTIF($J$1:J39,J39)-1,"") ->  | N39: S.US.NFLX
A40: =IF(Symbols!A40="","",Symbols!A40) -> S.US.Fig | B40: 1 | C40: S.US.Fig | D40: =IF(A40="","",RTD("cqg.rtd", ,"ContractData",C40, "LongDescription",, "T")) -> Figma, Inc. | H40: =IF(A40="","",RTD("cqg.rtd", ,"ContractData",C40, "LastTradeToday",, "T")) ->  | I40: =IF(A40="","",RTD("cqg.rtd", ,"ContractData",C40, "NetLastTradeToday",, "T")) ->  | J40: =IF(A40="","",IFERROR(RTD("cqg.rtd", ,"ContractData",C40, "PerCentNetLastTrade",, "T")/100,"")) ->  | K40: =IF(A40="","",RTD("cqg.rtd", ,"ContractData", C40, "T_CVol",, "T")) -> 55046 | L40: 40 | M40: =IFERROR(RANK($J40,INDIRECT(("$J$"&"1"&":$J$"&$A$103)))+COUNTIF($J$1:J40,J40)-1,"") ->  | N40: S.US.Fig
A41: =IF(Symbols!A41="","",Symbols!A41) -> S.US.BABA | B41: 1 | C41: S.US.BABA | D41: =IF(A41="","",RTD("cqg.rtd", ,"ContractData",C41, "LongDescription",, "T")) -> Alibaba Group Holding Ltd | H41: =IF(A41="","",RTD("cqg.rtd", ,"ContractData",C41, "LastTradeToday",, "T")) ->  | I41: =IF(A41="","",RTD("cqg.rtd", ,"ContractData",C41, "NetLastTradeToday",, "T")) ->  | J41: =IF(A41="","",IFERROR(RTD("cqg.rtd", ,"ContractData",C41, "PerCentNetLastTrade",, "T")/100,"")) ->  | K41: =IF(A41="","",RTD("cqg.rtd", ,"ContractData", C41, "T_CVol",, "T")) -> 259401 | L41: 41 | M41: =IFERROR(RANK($J41,INDIRECT(("$J$"&"1"&":$J$"&$A$103)))+COUNTIF($J$1:J41,J41)-1,"") ->  | N41: S.US.BABA
A42: =IF(Symbols!A42="","",Symbols!A42) -> S.US.NXDR | B42: 1 | C42: S.US.NXDR | D42: =IF(A42="","",RTD("cqg.rtd", ,"ContractData",C42, "LongDescription",, "T")) -> Nextdoor Holdings, Inc. | H42: =IF(A42="","",RTD("cqg.rtd", ,"ContractData",C42, "LastTradeToday",, "T")) ->  | I42: =IF(A42="","",RTD("cqg.rtd", ,"ContractData",C42, "NetLastTradeToday",, "T")) ->  | J42: =IF(A42="","",IFERROR(RTD("cqg.rtd", ,"ContractData",C42, "PerCentNetLastTrade",, "T")/100,"")) ->  | K42: =IF(A42="","",RTD("cqg.rtd", ,"ContractData", C42, "T_CVol",, "T")) -> 6 | L42: 42 | M42: =IFERROR(RANK($J42,INDIRECT(("$J$"&"1"&":$J$"&$A$103)))+COUNTIF($J$1:J42,J42)-1,"") ->  | N42: S.US.NXDR
A43: =IF(Symbols!A43="","",Symbols!A43) -> S.CA.ETHQ | B43: 1 | C43: S.CA.ETHQ | D43: =IF(A43="","",RTD("cqg.rtd", ,"ContractData",C43, "LongDescription",, "T")) -> 3iQ Ether Staking ETF | H43: =IF(A43="","",RTD("cqg.rtd", ,"ContractData",C43, "LastTradeToday",, "T")) -> 16.15 | I43: =IF(A43="","",RTD("cqg.rtd", ,"ContractData",C43, "NetLastTradeToday",, "T")) ->  | J43: =IF(A43="","",IFERROR(RTD("cqg.rtd", ,"ContractData",C43, "PerCentNetLastTrade",, "T")/100,"")) ->  | K43: =IF(A43="","",RTD("cqg.rtd", ,"ContractData", C43, "T_CVol",, "T")) -> 0 | L43: 43 | M43: =IFERROR(RANK($J43,INDIRECT(("$J$"&"1"&":$J$"&$A$103)))+COUNTIF($J$1:J43,J43)-1,"") ->  | N43: S.CA.ETHQ
A44: =IF(Symbols!A44="","",Symbols!A44) -> S.US.CRM | B44: 1 | C44: S.US.CRM | D44: =IF(A44="","",RTD("cqg.rtd", ,"ContractData",C44, "LongDescription",, "T")) -> Salesforce, Inc. | H44: =IF(A44="","",RTD("cqg.rtd", ,"ContractData",C44, "LastTradeToday",, "T")) ->  | I44: =IF(A44="","",RTD("cqg.rtd", ,"ContractData",C44, "NetLastTradeToday",, "T")) ->  | J44: =IF(A44="","",IFERROR(RTD("cqg.rtd", ,"ContractData",C44, "PerCentNetLastTrade",, "T")/100,"")) ->  | K44: =IF(A44="","",RTD("cqg.rtd", ,"ContractData", C44, "T_CVol",, "T")) -> 39133 | L44: 44 | M44: =IFERROR(RANK($J44,INDIRECT(("$J$"&"1"&":$J$"&$A$103)))+COUNTIF($J$1:J44,J44)-1,"") ->  | N44: S.US.CRM
A45: =IF(Symbols!A45="","",Symbols!A45) -> S.US.IBTA | B45: 1 | C45: S.US.IBTA | D45: =IF(A45="","",RTD("cqg.rtd", ,"ContractData",C45, "LongDescription",, "T")) -> Ibotta, Inc. | H45: =IF(A45="","",RTD("cqg.rtd", ,"ContractData",C45, "LastTradeToday",, "T")) ->  | I45: =IF(A45="","",RTD("cqg.rtd", ,"ContractData",C45, "NetLastTradeToday",, "T")) ->  | J45: =IF(A45="","",IFERROR(RTD("cqg.rtd", ,"ContractData",C45, "PerCentNetLastTrade",, "T")/100,"")) ->  | K45: =IF(A45="","",RTD("cqg.rtd", ,"ContractData", C45, "T_CVol",, "T")) -> 0 | L45: 45 | M45: =IFERROR(RANK($J45,INDIRECT(("$J$"&"1"&":$J$"&$A$103)))+COUNTIF($J$1:J45,J45)-1,"") ->  | N45: S.US.IBTA
A46: =IF(Symbols!A46="","",Symbols!A46) -> S.US.SLMT | B46: 1 | C46: S.US.SLMT | D46: =IF(A46="","",RTD("cqg.rtd", ,"ContractData",C46, "LongDescription",, "T")) -> BRERA HOLDINGS B OS | H46: =IF(A46="","",RTD("cqg.rtd", ,"ContractData",C46, "LastTradeToday",, "T")) ->  | I46: =IF(A46="","",RTD("cqg.rtd", ,"ContractData",C46, "NetLastTradeToday",, "T")) ->  | J46: =IF(A46="","",IFERROR(RTD("cqg.rtd", ,"ContractData",C46, "PerCentNetLastTrade",, "T")/100,"")) ->  | K46: =IF(A46="","",RTD("cqg.rtd", ,"ContractData", C46, "T_CVol",, "T")) -> 209347 | L46: 46 | M46: =IFERROR(RANK($J46,INDIRECT(("$J$"&"1"&":$J$"&$A$103)))+COUNTIF($J$1:J46,J46)-1,"") ->  | N46: S.US.SLMT
A47: =IF(Symbols!A47="","",Symbols!A47) -> S.CA.SOLQ | B47: 1 | C47: S.CA.SOLQ | D47: =IF(A47="","",RTD("cqg.rtd", ,"ContractData",C47, "LongDescription",, "T")) -> 3IQ SOLANA STAKING ETF | H47: =IF(A47="","",RTD("cqg.rtd", ,"ContractData",C47, "LastTradeToday",, "T")) -> 14.9 | I47: =IF(A47="","",RTD("cqg.rtd", ,"ContractData",C47, "NetLastTradeToday",, "T")) ->  | J47: =IF(A47="","",IFERROR(RTD("cqg.rtd", ,"ContractData",C47, "PerCentNetLastTrade",, "T")/100,"")) ->  | K47: =IF(A47="","",RTD("cqg.rtd", ,"ContractData", C47, "T_CVol",, "T")) -> 0 | L47: 47 | M47: =IFERROR(RANK($J47,INDIRECT(("$J$"&"1"&":$J$"&$A$103)))+COUNTIF($J$1:J47,J47)-1,"") ->  | N47: S.CA.SOLQ
A48: =IF(Symbols!A48="","",Symbols!A48) -> S.US.RDDT | B48: 1 | C48: S.US.RDDT | D48: =IF(A48="","",RTD("cqg.rtd", ,"ContractData",C48, "LongDescription",, "T")) -> Reddit, Inc. | H48: =IF(A48="","",RTD("cqg.rtd", ,"ContractData",C48, "LastTradeToday",, "T")) ->  | I48: =IF(A48="","",RTD("cqg.rtd", ,"ContractData",C48, "NetLastTradeToday",, "T")) ->  | J48: =IF(A48="","",IFERROR(RTD("cqg.rtd", ,"ContractData",C48, "PerCentNetLastTrade",, "T")/100,"")) ->  | K48: =IF(A48="","",RTD("cqg.rtd", ,"ContractData", C48, "T_CVol",, "T")) -> 32311 | L48: 48 | M48: =IFERROR(RANK($J48,INDIRECT(("$J$"&"1"&":$J$"&$A$103)))+COUNTIF($J$1:J48,J48)-1,"") ->  | N48: S.US.RDDT
A49: =IF(Symbols!A49="","",Symbols!A49) ->  | D49: =IF(A49="","",RTD("cqg.rtd", ,"ContractData",C49, "LongDescription",, "T")) ->  | H49: =IF(A49="","",RTD("cqg.rtd", ,"ContractData",C49, "LastTradeToday",, "T")) ->  | I49: =IF(A49="","",RTD("cqg.rtd", ,"ContractData",C49, "NetLastTradeToday",, "T")) ->  | J49: =IF(A49="","",IFERROR(RTD("cqg.rtd", ,"ContractData",C49, "PerCentNetLastTrade",, "T")/100,"")) ->  | K49: =IF(A49="","",RTD("cqg.rtd", ,"ContractData", C49, "T_CVol",, "T")) ->  | L49: 49 | M49: =IFERROR(RANK($J49,INDIRECT(("$J$"&"1"&":$J$"&$A$103)))+COUNTIF($J$1:J49,J49)-1,"") -> 
A50: =IF(Symbols!A50="","",Symbols!A50) ->  | D50: =IF(A50="","",RTD("cqg.rtd", ,"ContractData",C50, "LongDescription",, "T")) ->  | H50: =IF(A50="","",RTD("cqg.rtd", ,"ContractData",C50, "LastTradeToday",, "T")) ->  | I50: =IF(A50="","",RTD("cqg.rtd", ,"ContractData",C50, "NetLastTradeToday",, "T")) ->  | J50: =IF(A50="","",IFERROR(RTD("cqg.rtd", ,"ContractData",C50, "PerCentNetLastTrade",, "T")/100,"")) ->  | K50: =IF(A50="","",RTD("cqg.rtd", ,"ContractData", C50, "T_CVol",, "T")) ->  | L50: 50 | M50: =IFERROR(RANK($J50,INDIRECT(("$J$"&"1"&":$J$"&$A$103)))+COUNTIF($J$1:J50,J50)-1,"") -> 
A51: =IF(Symbols!A51="","",Symbols!A51) ->  | D51: =IF(A51="","",RTD("cqg.rtd", ,"ContractData",C51, "LongDescription",, "T")) ->  | H51: =IF(A51="","",RTD("cqg.rtd", ,"ContractData",C51, "LastTradeToday",, "T")) ->  | I51: =IF(A51="","",RTD("cqg.rtd", ,"ContractData",C51, "NetLastTradeToday",, "T")) ->  | J51: =IF(A51="","",IFERROR(RTD("cqg.rtd", ,"ContractData",C51, "PerCentNetLastTrade",, "T")/100,"")) ->  | K51: =IF(A51="","",RTD("cqg.rtd", ,"ContractData", C51, "T_CVol",, "T")) ->  | L51: 51 | M51: =IFERROR(RANK($J51,INDIRECT(("$J$"&"1"&":$J$"&$A$103)))+COUNTIF($J$1:J51,J51)-1,"") -> 
A52: =IF(Symbols!A52="","",Symbols!A52) ->  | D52: =IF(A52="","",RTD("cqg.rtd", ,"ContractData",C52, "LongDescription",, "T")) ->  | H52: =IF(A52="","",RTD("cqg.rtd", ,"ContractData",C52, "LastTradeToday",, "T")) ->  | I52: =IF(A52="","",RTD("cqg.rtd", ,"ContractData",C52, "NetLastTradeToday",, "T")) ->  | J52: =IF(A52="","",IFERROR(RTD("cqg.rtd", ,"ContractData",C52, "PerCentNetLastTrade",, "T")/100,"")) ->  | K52: =IF(A52="","",RTD("cqg.rtd", ,"ContractData", C52, "T_CVol",, "T")) ->  | L52: 52 | M52: =IFERROR(RANK($J52,INDIRECT(("$J$"&"1"&":$J$"&$A$103)))+COUNTIF($J$1:J52,J52)-1,"") -> 
A53: =IF(Symbols!A53="","",Symbols!A53) ->  | D53: =IF(A53="","",RTD("cqg.rtd", ,"ContractData",C53, "LongDescription",, "T")) ->  | H53: =IF(A53="","",RTD("cqg.rtd", ,"ContractData",C53, "LastTradeToday",, "T")) ->  | I53: =IF(A53="","",RTD("cqg.rtd", ,"ContractData",C53, "NetLastTradeToday",, "T")) ->  | J53: =IF(A53="","",IFERROR(RTD("cqg.rtd", ,"ContractData",C53, "PerCentNetLastTrade",, "T")/100,"")) ->  | K53: =IF(A53="","",RTD("cqg.rtd", ,"ContractData", C53, "T_CVol",, "T")) ->  | L53: 53 | M53: =IFERROR(RANK($J53,INDIRECT(("$J$"&"1"&":$J$"&$A$103)))+COUNTIF($J$1:J53,J53)-1,"") -> 
A54: =IF(Symbols!A54="","",Symbols!A54) ->  | D54: =IF(A54="","",RTD("cqg.rtd", ,"ContractData",C54, "LongDescription",, "T")) ->  | H54: =IF(A54="","",RTD("cqg.rtd", ,"ContractData",C54, "LastTradeToday",, "T")) ->  | I54: =IF(A54="","",RTD("cqg.rtd", ,"ContractData",C54, "NetLastTradeToday",, "T")) ->  | J54: =IF(A54="","",IFERROR(RTD("cqg.rtd", ,"ContractData",C54, "PerCentNetLastTrade",, "T")/100,"")) ->  | K54: =IF(A54="","",RTD("cqg.rtd", ,"ContractData", C54, "T_CVol",, "T")) ->  | L54: 54 | M54: =IFERROR(RANK($J54,INDIRECT(("$J$"&"1"&":$J$"&$A$103)))+COUNTIF($J$1:J54,J54)-1,"") -> 
A55: =IF(Symbols!A55="","",Symbols!A55) ->  | D55: =IF(A55="","",RTD("cqg.rtd", ,"ContractData",C55, "LongDescription",, "T")) ->  | H55: =IF(A55="","",RTD("cqg.rtd", ,"ContractData",C55, "LastTradeToday",, "T")) ->  | I55: =IF(A55="","",RTD("cqg.rtd", ,"ContractData",C55, "NetLastTradeToday",, "T")) ->  | J55: =IF(A55="","",IFERROR(RTD("cqg.rtd", ,"ContractData",C55, "PerCentNetLastTrade",, "T")/100,"")) ->  | K55: =IF(A55="","",RTD("cqg.rtd", ,"ContractData", C55, "T_CVol",, "T")) ->  | L55: 55 | M55: =IFERROR(RANK($J55,INDIRECT(("$J$"&"1"&":$J$"&$A$103)))+COUNTIF($J$1:J55,J55)-1,"") -> 
A56: =IF(Symbols!A56="","",Symbols!A56) ->  | D56: =IF(A56="","",RTD("cqg.rtd", ,"ContractData",C56, "LongDescription",, "T")) ->  | H56: =IF(A56="","",RTD("cqg.rtd", ,"ContractData",C56, "LastTradeToday",, "T")) ->  | I56: =IF(A56="","",RTD("cqg.rtd", ,"ContractData",C56, "NetLastTradeToday",, "T")) ->  | J56: =IF(A56="","",IFERROR(RTD("cqg.rtd", ,"ContractData",C56, "PerCentNetLastTrade",, "T")/100,"")) ->  | K56: =IF(A56="","",RTD("cqg.rtd", ,"ContractData", C56, "T_CVol",, "T")) ->  | L56: 56 | M56: =IFERROR(RANK($J56,INDIRECT(("$J$"&"1"&":$J$"&$A$103)))+COUNTIF($J$1:J56,J56)-1,"") -> 
A57: =IF(Symbols!A57="","",Symbols!A57) ->  | D57: =IF(A57="","",RTD("cqg.rtd", ,"ContractData",C57, "LongDescription",, "T")) ->  | H57: =IF(A57="","",RTD("cqg.rtd", ,"ContractData",C57, "LastTradeToday",, "T")) ->  | I57: =IF(A57="","",RTD("cqg.rtd", ,"ContractData",C57, "NetLastTradeToday",, "T")) ->  | J57: =IF(A57="","",IFERROR(RTD("cqg.rtd", ,"ContractData",C57, "PerCentNetLastTrade",, "T")/100,"")) ->  | K57: =IF(A57="","",RTD("cqg.rtd", ,"ContractData", C57, "T_CVol",, "T")) ->  | L57: 57 | M57: =IFERROR(RANK($J57,INDIRECT(("$J$"&"1"&":$J$"&$A$103)))+COUNTIF($J$1:J57,J57)-1,"") -> 
A58: =IF(Symbols!A58="","",Symbols!A58) ->  | D58: =IF(A58="","",RTD("cqg.rtd", ,"ContractData",C58, "LongDescription",, "T")) ->  | H58: =IF(A58="","",RTD("cqg.rtd", ,"ContractData",C58, "LastTradeToday",, "T")) ->  | I58: =IF(A58="","",RTD("cqg.rtd", ,"ContractData",C58, "NetLastTradeToday",, "T")) ->  | J58: =IF(A58="","",IFERROR(RTD("cqg.rtd", ,"ContractData",C58, "PerCentNetLastTrade",, "T")/100,"")) ->  | K58: =IF(A58="","",RTD("cqg.rtd", ,"ContractData", C58, "T_CVol",, "T")) ->  | L58: 58 | M58: =IFERROR(RANK($J58,INDIRECT(("$J$"&"1"&":$J$"&$A$103)))+COUNTIF($J$1:J58,J58)-1,"") -> 
A59: =IF(Symbols!A59="","",Symbols!A59) ->  | D59: =IF(A59="","",RTD("cqg.rtd", ,"ContractData",C59, "LongDescription",, "T")) ->  | H59: =IF(A59="","",RTD("cqg.rtd", ,"ContractData",C59, "LastTradeToday",, "T")) ->  | I59: =IF(A59="","",RTD("cqg.rtd", ,"ContractData",C59, "NetLastTradeToday",, "T")) ->  | J59: =IF(A59="","",IFERROR(RTD("cqg.rtd", ,"ContractData",C59, "PerCentNetLastTrade",, "T")/100,"")) ->  | K59: =IF(A59="","",RTD("cqg.rtd", ,"ContractData", C59, "T_CVol",, "T")) ->  | L59: 59 | M59: =IFERROR(RANK($J59,INDIRECT(("$J$"&"1"&":$J$"&$A$103)))+COUNTIF($J$1:J59,J59)-1,"") -> 
A60: =IF(Symbols!A60="","",Symbols!A60) ->  | D60: =IF(A60="","",RTD("cqg.rtd", ,"ContractData",C60, "LongDescription",, "T")) ->  | H60: =IF(A60="","",RTD("cqg.rtd", ,"ContractData",C60, "LastTradeToday",, "T")) ->  | I60: =IF(A60="","",RTD("cqg.rtd", ,"ContractData",C60, "NetLastTradeToday",, "T")) ->  | J60: =IF(A60="","",IFERROR(RTD("cqg.rtd", ,"ContractData",C60, "PerCentNetLastTrade",, "T")/100,"")) ->  | K60: =IF(A60="","",RTD("cqg.rtd", ,"ContractData", C60, "T_CVol",, "T")) ->  | L60: 60 | M60: =IFERROR(RANK($J60,INDIRECT(("$J$"&"1"&":$J$"&$A$103)))+COUNTIF($J$1:J60,J60)-1,"") -> 
A103: =60-COUNTIF(A1:A60,"") -> 48 | B103: =SUM(B1:B101)/A103 -> 1
A104: ="$J$1:$J$"&A103 -> $J$1:$J$48

Sheet Symbols
A1: S.US.TSLA | B1: =IF(A1="","",RTD("cqg.rtd", ,"ContractData",A1, "LongDescription",, "T")) -> TESLA, INC. | G1: https://www.ark-funds.com/funds/arkw#hold | M1: Last Symbol update was 9/12/2025
A2: S.US.AMD | B2: =IF(A2="","",RTD("cqg.rtd", ,"ContractData",A2, "LongDescription",, "T")) -> ADV MICRO DEVICES
A3: S.US.ARKW | B3: =IF(A3="","",RTD("cqg.rtd", ,"ContractData",A3, "LongDescription",, "T")) -> ARK Next Generation Internet ETF
A4: S.US.ROKU | B4: =IF(A4="","",RTD("cqg.rtd", ,"ContractData",A4, "LongDescription",, "T")) -> ROKU, INC. A CMN
A5: S.US.COIN | B5: =IF(A5="","",RTD("cqg.rtd", ,"ContractData",A5, "LongDescription",, "T")) -> COINBASE GLB CL A CM
A6: S.US.SHOP | B6: =IF(A6="","",RTD("cqg.rtd", ,"ContractData",A6, "LongDescription",, "T")) -> Shopify Inc.
A7: S.US.HOOD | B7: =IF(A7="","",RTD("cqg.rtd", ,"ContractData",A7, "LongDescription",, "T")) -> ROBINHOOD MK CL A CS
A8: S.US.PLTR | B8: =IF(A8="","",RTD("cqg.rtd", ,"ContractData",A8, "LongDescription",, "T")) -> PALANTIR TECH CL A
A9: S.US.RBLX | B9: =IF(A9="","",RTD("cqg.rtd", ,"ContractData",A9, "LongDescription",, "T")) -> Roblox Corp
A10: S.US.CRCL | B10: =IF(A10="","",RTD("cqg.rtd", ,"ContractData",A10, "LongDescription",, "T")) -> Circle Internet Group
A11: S.US.TSM | B11: =IF(A11="","",RTD("cqg.rtd", ,"ContractData",A11, "LongDescription",, "T")) -> Taiwan Semiconductor Manufacturing Co
A12: S.US.BMNR | B12: =IF(A12="","",RTD("cqg.rtd", ,"ContractData",A12, "LongDescription",, "T")) -> BitMine Immersion Technologies Inc.
A13: S.US.META | B13: =IF(A13="","",RTD("cqg.rtd", ,"ContractData",A13, "LongDescription",, "T")) -> Meta Platforms, Inc.
A14: S.US.GOOG | B14: =IF(A14="","",RTD("cqg.rtd", ,"ContractData",A14, "LongDescription",, "T")) -> ALPHABET CL C CAP
A15: S.US.CRWD | B15: =IF(A15="","",RTD("cqg.rtd", ,"ContractData",A15, "LongDescription",, "T")) -> CROWDSTRIKE HLD CM A
A16: S.US.XYZ | B16: =IF(A16="","",RTD("cqg.rtd", ,"ContractData",A16, "LongDescription",, "T")) -> Square, Inc
A17: S.US.GTLB | B17: =IF(A17="","",RTD("cqg.rtd", ,"ContractData",A17, "LongDescription",, "T")) -> GITLAB INC.
A18: S.US.AMZN | B18: =IF(A18="","",RTD("cqg.rtd", ,"ContractData",A18, "LongDescription",, "T")) -> Amazon.com Inc | C18: To update the Ticker List:
A19: S.US.NET | B19: =IF(A19="","",RTD("cqg.rtd", ,"ContractData",A19, "LongDescription",, "T")) -> Cloudflare, Inc.
A20: S.US.DDOG | B20: =IF(A20="","",RTD("cqg.rtd", ,"ContractData",A20, "LongDescription",, "T")) -> DATADOG INC.L A CM
A21: S.US.CRWV | B21: =IF(A21="","",RTD("cqg.rtd", ,"ContractData",A21, "LongDescription",, "T")) -> COREWEAVE CL A CS | C21: 1) From their Web site download
A22: S.US.U | B22: =IF(A22="","",RTD("cqg.rtd", ,"ContractData",A22, "LongDescription",, "T")) -> Unity Software Inc. | C22: the CSV File.
A23: S.US.DKNG | B23: =IF(A23="","",RTD("cqg.rtd", ,"ContractData",A23, "LongDescription",, "T")) -> DRAFTKINGS INC. CL A
A24: S.US.NVDA | B24: =IF(A24="","",RTD("cqg.rtd", ,"ContractData",A24, "LongDescription",, "T")) -> NVIDIA CORPORATION
A25: S.US.BLSH | B25: =IF(A25="","",RTD("cqg.rtd", ,"ContractData",A25, "LongDescription",, "T")) -> Bullish | C25: 2) Copy the Tickers from the file.
A26: S.US.DASH | B26: =IF(A26="","",RTD("cqg.rtd", ,"ContractData",A26, "LongDescription",, "T")) -> DOORDASH, INC. CL A | C26: Merge "S.US." to the Tickers. ="S.US."&H26 | H26: NVDA
A27: S.US.RBRK | B27: =IF(A27="","",RTD("cqg.rtd", ,"ContractData",A27, "LongDescription",, "T")) -> Rubrik, Inc. | G27: ="S.US."&H26 -> S.US.NVDA
A28: S.US.SPOT | B28: =IF(A28="","",RTD("cqg.rtd", ,"ContractData",A28, "LongDescription",, "T")) -> Spotify Technology S.A.
A29: S.US.PINS | B29: =IF(A29="","",RTD("cqg.rtd", ,"ContractData",A29, "LongDescription",, "T")) -> Pinterest, Inc. | C29: 3) Remove money market fund tickers.
A30: S.US.BIDU | B30: =IF(A30="","",RTD("cqg.rtd", ,"ContractData",A30, "LongDescription",, "T")) -> BAIDU, INC
A31: S.US.PSTG | B31: =IF(A31="","",RTD("cqg.rtd", ,"ContractData",A31, "LongDescription",, "T")) -> Pure Storage, Inc.
A32: S.US.ABNB | B32: =IF(A32="","",RTD("cqg.rtd", ,"ContractData",A32, "LongDescription",, "T")) -> Airbnb, Inc. Class A | C32: 4) Copy and Paste "As Values" the updated Ticker List to column A.
A33: S.US.MELI | B33: =IF(A33="","",RTD("cqg.rtd", ,"ContractData",A33, "LongDescription",, "T")) -> MERCADOLIBRE, INC.
A34: S.US.TTD | B34: =IF(A34="","",RTD("cqg.rtd", ,"ContractData",A34, "LongDescription",, "T")) -> THE TRADE DESK CL A
A35: S.US.GENI | B35: =IF(A35="","",RTD("cqg.rtd", ,"ContractData",A35, "LongDescription",, "T")) -> Genius Sports LTD
A36: S.US.PD | B36: =IF(A36="","",RTD("cqg.rtd", ,"ContractData",A36, "LongDescription",, "T")) -> PagerDuty, Inc.
A37: S.US.TOST | B37: =IF(A37="","",RTD("cqg.rtd", ,"ContractData",A37, "LongDescription",, "T")) -> Toast, Inc.
A38: S.US.QCOM | B38: =IF(A38="","",RTD("cqg.rtd", ,"ContractData",A38, "LongDescription",, "T")) -> QUALCOMM Inc
A39: S.US.NFLX | B39: =IF(A39="","",RTD("cqg.rtd", ,"ContractData",A39, "LongDescription",, "T")) -> NETFLIX, INC.
A40: S.US.Fig | B40: =IF(A40="","",RTD("cqg.rtd", ,"ContractData",A40, "LongDescription",, "T")) -> Figma, Inc.
A41: S.US.BABA | B41: =IF(A41="","",RTD("cqg.rtd", ,"ContractData",A41, "LongDescription",, "T")) -> Alibaba Group Holding Ltd
A42: S.US.NXDR | B42: =IF(A42="","",RTD("cqg.rtd", ,"ContractData",A42, "LongDescription",, "T")) -> Nextdoor Holdings, Inc.
A43: S.CA.ETHQ | B43: =IF(A43="","",RTD("cqg.rtd", ,"ContractData",A43, "LongDescription",, "T")) -> 3iQ Ether Staking ETF
A44: S.US.CRM | B44: =IF(A44="","",RTD("cqg.rtd", ,"ContractData",A44, "LongDescription",, "T")) -> Salesforce, Inc.
A45: S.US.IBTA | B45: =IF(A45="","",RTD("cqg.rtd", ,"ContractData",A45, "LongDescription",, "T")) -> Ibotta, Inc.
A46: S.US.SLMT | B46: =IF(A46="","",RTD("cqg.rtd", ,"ContractData",A46, "LongDescription",, "T")) -> BRERA HOLDINGS B OS
A47: S.CA.SOLQ | B47: =IF(A47="","",RTD("cqg.rtd", ,"ContractData",A47, "LongDescription",, "T")) -> 3IQ SOLANA STAKING ETF
A48: S.US.RDDT | B48: =IF(A48="","",RTD("cqg.rtd", ,"ContractData",A48, "LongDescription",, "T")) -> Reddit, Inc.
B49: =IF(A49="","",RTD("cqg.rtd", ,"ContractData",A49, "LongDescription",, "T")) -> 
B50: =IF(A50="","",RTD("cqg.rtd", ,"ContractData",A50, "LongDescription",, "T")) -> 
B51: =IF(A51="","",RTD("cqg.rtd", ,"ContractData",A51, "LongDescription",, "T")) -> 
B52: =IF(A52="","",RTD("cqg.rtd", ,"ContractData",A52, "LongDescription",, "T")) -> 
B53: =IF(A53="","",RTD("cqg.rtd", ,"ContractData",A53, "LongDescription",, "T")) -> 
B54: =IF(A54="","",RTD("cqg.rtd", ,"ContractData",A54, "LongDescription",, "T")) -> 
B55: =IF(A55="","",RTD("cqg.rtd", ,"ContractData",A55, "LongDescription",, "T")) -> 
B56: =IF(A56="","",RTD("cqg.rtd", ,"ContractData",A56, "LongDescription",, "T")) -> 
B57: =IF(A57="","",RTD("cqg.rtd", ,"ContractData",A57, "LongDescription",, "T")) -> 
B58: =IF(A58="","",RTD("cqg.rtd", ,"ContractData",A58, "LongDescription",, "T")) -> 
B59: =IF(A59="","",RTD("cqg.rtd", ,"ContractData",A59, "LongDescription",, "T")) -> 
B60: =IF(A60="","",RTD("cqg.rtd", ,"ContractData",A60, "LongDescription",, "T")) -> 
